Cogmind - Beta 16 @@@ ROGUE MODE // 2025.11.18 @ 04:10:15 Player: Darcyisverycute Result: Escaped singularity! Performance ------------- Evolutions (9) 4500 Regions Visited (36) 7200 Robots Destroyed (632) 3160 Value Destroyed (38073) 38073 Prototype IDs (389) 7780 Alien Tech Used (4) 800 Bonus (74078) 74078 TOTAL SCORE: 135591 Bonus ------- Triggered High Security 500 High Alert Combat Kills 10956 Follower Combat Kills 1468 Entered Garrisons 600 Network Hubs Disabled 600 Aligned with FarCom 300 Met Data Miner 300 Used Data Conduit 3000 Acquired ECA 300 Met Warlord at Base 500 MAIN.C Attacked Warlord 500 Warlord Defense Kills 1838 Built Enhanced Grunts 300 A7 Reached Mainframe 300 Met R17 at Cetus 500 Found Hidden Lab 3000 Decrypted A0 Command 3000 Met R17 at Research 2000 Met Warlord at Research 2000 Pursued by Intercept 2500 Destroyed MAIN.C Guards 500 Met MAIN.C 5000 Hacked MAIN.C 300 Destroyed MAIN.C Shell 5000 Destroyed MAIN.C 10000 Met Warlord at Command 2000 Met Architect 300 Destroyed Architect 15000 Win 3000 Friendly Fire -1484 Cogmind --------- Core Integrity 431/1600 Matter 283/300 Energy 97/100 System Corruption 17% Temperature Cool (0) Movement Core (50) Location Near Former Tau Ceti IV Parts ------- > --- POWER (3) -------- (None) > --- PROPULSION (4) --- (None) > --- UTILITY (11) ----- (None) > --- WEAPON (7) ------- (None) > --- INVENTORY (5) ---- Armored Heavy Treads Advanced Heavy Treads Long-range Tractor Beam Peak State ------------ > --- POWER ------------ Reinforced Quantum Reactor Improved Quantum Reactor Zero-point Reactor > --- PROPULSION ------- Experimental Biometal Heavy Treads Enhanced Armored Heavy Treads > --- UTILITY ---------- Advanced Cooling System Huge Storage Unit Experimental Optical Array Experimental Targeting Computer Experimental Targeting Computer Experimental Target Analyzer Experimental Core Analyzer Improved Armor Integrity Analyzer Improved Utility Shielding Experimental Force Field Experimental System Purifier > --- WEAPON ----------- Enhanced Nova Cannon Enhanced Nova Cannon Enhanced Nova Cannon Cooled Nova Cannon Multirail Multirail Multirail > --- INVENTORY -------- Zero-point Reactor Armored Heavy Treads Armored Heavy Treads Advanced Cooling System Experimental Cooling System Advanced Coolant Injector Improved Matter Compressor Advanced Kinecellerator Advanced Kinecellerator Medium Regenerative Plating Graphene Brace Improved Dynamic Insulation System Long-range Tractor Beam Transdimensional Reconstructor Core Regenerator Warp Cannon Cooled Nova Cannon Hypervelocity Railgun Multirail Hypervelocity Multirail Omega Cannon Guided Remote Datajack [Rating: 247] Favorites ----------- Power Improved Quantum Reactor Engine Cooled Ion Engine Power Core Neutrino Core Reactor Improved Quantum Reactor Propulsion Light Treads Treads Light Treads Utility Huge Storage Unit Device Advanced Cooling System Storage Huge Storage Unit Processor Experimental Targeting Computer Hackware Deep Network Scanner Protection Medium Regenerative Plating Weapon KE Penetrator Energy Gun Vortex Rail Energy Cannon Enhanced Nova Cannon Ballistic Gun KE Penetrator Ballistic Cannon Magnetic Acceleration Cannon Launcher Heavy Shock Bomb Launcher Special Weapon Mining Laser Slashing Weapon Makeshift Axe Build | -11 -10 -9 -9 -9 -8 -8 -8 -8 -8 -7 -7 -7 -7 -6 -6 -6 -5 -5 -5 -5 -5 -5 -4 -4 -4 -4 -4 -4 -3 -3 -3 -2 -2 -1 -1 -1 ------- Run | Yrd Mat Mat Min Exi Min Mat Gar Mat Gar Fac Low Low Dat Pro Fac Gar Fac Was Fac Upp Upp War Pro Fac Ext Cet Arc Hub Res Arm Lab Res Tes Acc Com Ac0 Slots Evolved 18 | . . 2 . . . 2 . . . 2 . . . . 2 . 2 . . . . . . 2 . . . . 2 . . 2 . 2 . . Power 2 | . . . . . . . . . . 1 . . . . . . . . . . . . . . . . . . . . . . . 1 . . Propulsion 2 | . . . . . . 1 . . . . . . . . 1 . . . . . . . . . . . . . . . . . . . . . Utility 9 | . . . . . . 1 . . . 1 . . . . . . 1 . . . . . . 2 . . . . 2 . . 2 . . . . Weapon 5 | . . 2 . . . . . . . . . . . . 1 . 1 . . . . . . . . . . . . . . . . 1 . . Parts Attached 451 | 8 7 26 . 15 4 7 15 16 8 15 2 2 7 6 14 12 3 15 3 1 1 15 8 21 42 6 7 10 9 48 3 21 6 21 36 11 Power 47 | 1 1 4 . 1 1 . . 1 . 1 . . 1 . 2 2 . 2 1 . . 2 . 3 7 . . 1 . 6 . 2 . 3 4 1 Engine 8 | 1 1 2 . . . . . 1 . . . . . . 2 1 . . . . . . . . . . . . . . . . . . . . Core 14 | . . 2 . . 1 . . . . 1 . . . . . . . 2 1 . . . . . 6 . . 1 . . . . . . . . Reactor 25 | . . . . 1 . . . . . . . . 1 . . 1 . . . . . 2 . 3 1 . . . . 6 . 2 . 3 4 1 Propulsion 78 | 2 1 5 . 3 1 1 6 4 3 1 . . 1 . 4 2 1 2 . . . 2 . 6 12 1 1 1 1 11 . . . 3 2 1 Treads 78 | 2 1 5 . 3 1 1 6 4 3 1 . . 1 . 4 2 1 2 . . . 2 . 6 12 1 1 1 1 11 . . . 3 2 1 Leg . | . . . . . . . . . . . . . . . . . . . . . . . . . . . . . . . . . . . . . Wheel . | . . . . . . . . . . . . . . . . . . . . . . . . . . . . . . . . . . . . . Hover . | . . . . . . . . . . . . . . . . . . . . . . . . . . . . . . . . . . . . . Flight . | . . . . . . . . . . . . . . . . . . . . . . . . . . . . . . . . . . . . . Utility 150 | 3 1 5 . 4 1 4 5 7 2 5 2 2 2 4 5 2 2 4 1 . 1 4 6 2 7 2 4 7 6 16 1 7 2 5 14 5 Device 73 | 2 . 1 . 2 1 . 3 1 2 2 2 1 . 3 1 1 1 4 1 . . 2 5 . 5 1 4 2 3 6 . 1 . 3 9 4 Storage 9 | 1 1 3 . . . 1 . . . . . . . . . 1 . . . . . . . . . . . . . 1 . . . 1 . . Processor 22 | . . . . . . 2 . . . 1 . . . . . . . . . . 1 . 1 1 1 1 . . 3 3 . 3 1 1 3 . Hackware 20 | . . 1 . . . 1 . 1 . 1 . . . . 3 . 1 . . . . . . 1 . . . 3 . 5 . 1 1 . 1 . Protection 26 | . . . . 2 . . 2 5 . 1 . 1 2 1 1 . . . . . . 2 . . 1 . . 2 . 1 1 2 . . 1 1 Artifact . | . . . . . . . . . . . . . . . . . . . . . . . . . . . . . . . . . . . . . Weapon 176 | 2 4 12 . 7 1 2 4 4 3 8 . . 3 2 3 6 . 7 1 1 . 7 2 10 16 3 2 1 2 15 2 12 4 10 16 4 Energy Gun 12 | . . . . 1 . . . . . . . . . . . . . 3 . . . 2 1 3 . . . . . . 1 . . 1 . . Energy Cannon 20 | . . . . . . . . . 1 . . . 1 1 . . . . . . . . . 2 . . . . . 3 1 . 2 . 7 2 Ballistic Gun 120 | 2 3 11 . 4 . 2 4 4 2 8 . . 2 1 2 3 . 4 1 . . 2 1 2 12 2 2 1 2 11 . 12 2 9 8 1 Ballistic Cannon 9 | . . . . . . . . . . . . . . . 1 2 . . . . . 1 . 1 3 . . . . . . . . . . 1 Launcher 7 | . . 1 . 2 . . . . . . . . . . . . . . . 1 . 1 . . . 1 . . . 1 . . . . . . Special Weapon 5 | . 1 . . . . . . . . . . . . . . 1 . . . . . 1 . . 1 . . . . . . . . . 1 . Impact Weapon . | . . . . . . . . . . . . . . . . . . . . . . . . . . . . . . . . . . . . . Slashing Weapon 3 | . . . . . 1 . . . . . . . . . . . . . . . . . . 2 . . . . . . . . . . . . Piercing Weapon . | . . . . . . . . . . . . . . . . . . . . . . . . . . . . . . . . . . . . . Special Melee Weapon . | . . . . . . . . . . . . . . . . . . . . . . . . . . . . . . . . . . . . . Unidentified Prototypes 27 | . . 1 . 5 . . . 1 . . . . . . 3 . . . . . . 3 . 1 . . . . . 1 4 . 4 1 3 . Corrupted Parts 11 | . . . . . . . . . 2 . . . . . . . . . . . . . . 2 . 3 1 1 . 2 . . . . . . System Corruption 48 | . . . . . . . . . 5 . . . . . . . . . . . . . . 3 . 14 3 10 . 13 . . . . . . Parts Lost 170 | . 5 5 . 5 2 2 . . 7 1 . 1 8 1 7 3 1 4 . . 2 3 2 22 15 1 . 3 . 33 . . . 12 4 21 Power 19 | . 1 1 . . . . . . . . . . 1 . 1 1 . 1 . . . . . 3 2 . . 1 . 4 . . . 1 . 2 Propulsion 32 | . 1 2 . 1 . . . . 2 . . 1 2 . 2 1 1 . . . . . . 7 5 . . . . 3 . . . 2 . 2 Utility 39 | . . . . 1 1 . . . . 1 . . 1 . . 1 . . . . 2 1 . 4 4 . . 1 . 11 . . . 3 1 7 Weapon 80 | . 3 2 . 3 1 2 . . 5 . . . 4 1 4 . . 3 . . . 2 2 8 4 1 . 1 . 15 . . . 6 3 10 Highest Loss Streak 17 | . 4 3 . 5 2 1 . . 2 1 . 1 7 1 3 1 1 2 . . 2 2 2 7 7 1 . 3 . 7 . . . 6 3 17 To Critical Strikes 6 | . . . . 4 . . . . . . . . . . . . . . . . . . . . 1 . . . . . . . . 1 . . Average Backups 19 | 1 5 11 18 14 13 22 22 20 20 21 21 22 21 24 19 20 20 8 20 20 20 19 19 17 18 18 17 17 20 20 16 20 20 20 21 19 Power . | . . . . . 1 1 1 1 1 . . . . . . . . . 1 . 1 1 1 1 . 1 1 1 1 . 1 1 . . . . Propulsion 1 | . 1 2 3 1 1 1 2 1 . . 1 1 . . . . . . 3 3 3 3 2 1 . 1 1 1 3 4 2 2 3 2 2 2 Utility 11 | . 1 3 6 4 6 12 12 13 14 15 14 14 16 21 15 14 14 5 13 14 13 13 15 13 13 12 13 14 14 11 5 7 8 7 10 7 Weapon 4 | 1 2 5 9 7 4 6 6 5 4 5 5 5 4 2 2 4 3 1 1 2 2 1 . 1 2 3 2 1 1 3 6 5 4 7 5 6 Tool/Special . | . . . . . . . . . . . . . . . . . . . . . . . . . . . . . . . . . . . . . Unused Backups 89 | . 2 2 . 12 1 2 5 1 . 4 . . 2 . . 6 . 6 4 . 1 4 . 1 4 2 1 1 1 5 . 8 1 2 7 4 Power 6 | . . . . 3 1 . . . . . . . 1 . . . . . 1 . . . . . . . . . . . . . . . . . Propulsion 8 | . . . . . . . 1 . . . . . . . . . . . . . . 1 . . . . 1 . . 1 . 1 . . 1 2 Utility 57 | . 1 1 . 8 . 2 4 . . 4 . . 1 . . 4 . 5 2 . 1 3 . . 1 2 . 1 1 4 . 4 1 1 4 2 Weapon 15 | . 1 . . 1 . . . 1 . . . . . . . 2 . 1 . . . . . 1 3 . . . . . . 3 . . 2 . Tool/Special 3 | . . 1 . . . . . . . . . . . . . . . . 1 . . . . . . . . . . . . . . 1 . . Average Slot Usage (%) 89 | . 97 99 100 87 70 99 99 99 88 97 100 96 74 83 60 83 86 69 87 88 87 74 89 79 86 97 88 90 86 84 64 93 100 97 92 87 Engine 1 | . 13 4 . . . . . 5 9 1 . . . . 3 7 5 1 . . . . . . . . . . . . . . . . . . Core 3 | . . 6 11 8 6 9 9 3 . 5 7 7 3 . . . . 4 8 5 5 3 . . 3 10 10 9 6 3 . . . . . . Reactor 5 | . . . . 2 . . . . . 6 7 7 9 15 4 3 5 . 1 5 5 6 11 7 2 . . . . 4 4 7 8 10 12 11 Treads 16 | . 28 22 22 22 15 27 27 27 26 23 23 19 10 6 10 18 18 12 11 11 11 11 17 15 15 19 15 15 14 12 19 17 17 15 8 7 Device 10 | . 20 4 11 1 5 1 6 2 5 6 13 14 8 21 5 5 7 10 10 11 10 11 6 7 11 12 8 5 13 12 19 17 16 16 12 17 Storage 6 | . 7 11 11 10 7 9 9 9 9 7 7 7 7 7 4 6 5 1 5 5 5 5 5 5 5 5 5 5 4 4 4 4 4 4 4 4 Processor 10 | . . . . . . 8 9 9 9 9 7 7 2 . . . . . . . . 5 10 14 15 17 21 18 18 17 9 14 19 20 24 18 Hackware 2 | . . 6 . . . 7 . . . 3 . . . . 13 13 11 11 11 11 10 . . 4 1 . . 3 . . . 3 4 . . . Protection 1 | . . . . 1 . . 2 5 2 1 1 . 5 . 1 . . . . . . . 3 2 1 . . . . 1 2 4 2 1 3 2 Energy Cannon 2 | . . . . . . . . . 3 1 . . 1 10 2 . . . . . . . . 1 . . . . . . 3 1 2 2 8 24 Ballistic Gun 22 | . 20 42 44 37 28 33 30 34 15 21 30 23 18 17 9 13 15 10 25 29 29 6 20 7 16 27 27 31 28 24 . 19 22 24 18 . Slashing Weapon 1 | . . . . . 5 1 4 1 2 3 . 5 3 . . 4 3 3 5 5 3 3 . 2 1 . . . . . . . . . . . Peak Build Rating 247 | 9 9 22 20 47 30 37 41 37 55 62 56 55 59 63 71 69 83 99 107 101 103 133 133 141 129 137 141 149 168 182 128 199 209 217 247 243 Average Rating 107 | 6 8 17 20 24 21 34 35 32 39 49 51 50 47 57 55 62 75 69 101 100 99 94 120 114 115 121 131 141 158 165 113 181 202 207 234 228 On Entrance 87 | . 9 8 20 20 28 30 37 36 32 52 56 51 49 54 62 58 65 78 99 101 100 81 114 113 86 112 137 141 147 165 122 120 199 205 213 238 Avg Prop Armor Cover (%) 31 | . . . . . . . . . . . . . . . 31 . . 41 . . . . . . . . 8 . . . . . . . . . Naked Turns 10 | . . . . . 4 . . . . . . . . . . . . . . . . . . . . . . . . . . . . . . 6 Heaviest Build 272 | 11 18 58 58 68 74 114 116 116 118 125 125 134 152 147 139 135 148 136 145 148 148 206 171 174 168 151 149 152 162 230 162 195 197 225 255 272 Greatest Support 165 | 40 40 40 40 40 40 60 60 60 62 70 70 70 50 22 70 90 120 140 140 140 140 140 124 124 125 130 130 134 135 160 132 132 132 140 165 165 Greatest Overweight (x) 48 | . . 1 1 1 1 1 1 1 2 2 1 2 6 48 6 2 1 1 1 1 1 1 1 3 5 1 2 1 1 2 1 1 1 1 1 1 Average Overweight (x) . | . . . 1 . . 1 1 1 1 1 1 1 3 5 1 . 1 . . 1 1 . 1 1 1 1 1 1 . . . . 1 1 1 . Largest Inventory Capacity 25 | 8 10 20 20 20 20 25 25 25 25 25 25 25 25 25 25 25 25 25 25 25 25 25 25 25 25 25 25 25 25 25 25 25 25 25 25 25 Average Capacity 23 | 7 7 13 20 18 15 24 25 25 25 25 25 25 25 25 21 23 24 12 25 25 25 25 25 25 25 25 25 25 25 25 25 25 25 25 25 24 Most Carried 25 | 5 10 20 20 20 20 25 25 25 25 25 24 25 25 25 25 25 24 24 25 25 25 25 25 25 25 25 25 25 25 25 23 25 25 25 25 25 Average Carried 22 | 1 5 12 20 16 14 23 24 24 24 24 23 24 23 24 19 22 21 9 24 24 24 24 24 23 24 24 24 24 23 23 19 24 24 23 24 23 Final Capacity 25 | 5 10 20 20 20 20 25 25 25 25 25 25 25 25 25 25 20 25 25 25 25 25 25 25 25 25 25 25 25 25 25 25 25 25 25 25 5 Final Carried 25 | 3 10 20 20 19 20 25 25 25 25 24 24 25 25 25 24 20 22 24 25 25 22 25 25 24 25 25 25 22 25 15 23 25 24 25 25 5 Class Distribution -------------------- 40% | Scavenger-Executioner 19% | Scavenger-Gunner 5% | Hacker-Executioner 5% | Skirmisher 4% | Scavenger-Mutant 4% | Scavenger-Skirmisher 3% | Mutant 3% | Gunner 3% | Scavenger-Tank Dominant Class ---------------- Scavenger-Mutant | -10/Materials Scavenger-Gunner | -9/Materials Scavenger-Gunner | -9/Mines Gunner | -9/Exiles Scavenger-Skirmisher | -8/Mines Scavenger-Gunner | -8/Materials Scavenger-Gunner | -8/Garrison Scavenger-Gunner | -8/Materials Scavenger-Gunner | -8/Garrison Skirmisher | -7/Factory Skirmisher | -7/Lower Caves Skirmisher | -7/Lower Caves Tank | -7/Data Miner Scavenger-Skirmisher | -6/Proximity Caves Wizard-Mutant | -6/Factory Hacker-Gunner | -6/Garrison Hacker-Executioner | -5/Factory Hacker-Executioner | -5/Waste Hacker-Executioner | -5/Factory Hacker-Executioner | -5/Upper Caves Hacker-Executioner | -5/Upper Caves Scientist-Executioner | -5/Warlord Scavenger-Executioner | -4/Proximity Caves Scavenger-Gunner | -4/Factory Scavenger-Executioner | -4/Extension Scavenger-Executioner | -4/Cetus Scavenger-Executioner | -4/Archives Scavenger-Executioner | -4/Hub_04(d) Scavenger-Executioner | -3/Research Scavenger-Executioner | -3/Armory Scavenger-Mutant | -3/Lab Scavenger-Executioner | -2/Research Scavenger-Executioner | -2/Testing Scavenger-Executioner | -1/Access Scavenger-Executioner | -1/Command Scavenger-Executioner | -1/Access_0 Resources | -11 -10 -9 -9 -9 -8 -8 -8 -8 -8 -7 -7 -7 -7 -6 -6 -6 -5 -5 -5 -5 -5 -5 -4 -4 -4 -4 -4 -4 -3 -3 -3 -2 -2 -1 -1 -1 ----------- Run | Yrd Mat Mat Min Exi Min Mat Gar Mat Gar Fac Low Low Dat Pro Fac Gar Fac Was Fac Upp Upp War Pro Fac Ext Cet Arc Hub Res Arm Lab Res Tes Acc Com Ac0 Matter Collected 34185 | 276 291 955 . 1492 375 373 888 774 1140 1039 75 537 564 379 650 880 450 234 459 96 96 1363 665 981 2220 217 489 827 1464 5198 . 499 1169 3047 3644 379 Remotely 11340 | . . . . . . . . . . 389 . 111 . 119 . 747 401 . 143 . . . 78 779 553 . . 573 1053 2358 . . 563 1782 1636 55 Salvage Created 39349 | 98 315 1009 . 497 302 615 1013 949 1529 1039 75 314 414 61 612 546 199 324 436 96 266 475 737 2145 2586 524 453 1419 1879 8315 . 166 932 4163 4196 650 Parts 1838 | 10 20 65 . 66 13 30 55 65 78 58 6 9 25 . 33 21 11 3 12 1 2 22 36 86 105 20 39 84 74 364 . 6 35 181 182 21 Haulers Intercepted 12 | . 1 4 . . . 2 . 2 . . . . . . . . . . . . . . . 1 1 . . . . . . . . 1 . . Recyclers Shooed 7 | . . . . . . . . 2 . 1 . . . . 1 . . . 1 . . . . . 1 . . . . . . . . 1 . . Parts Field Recycled 14 | . . . . . . . . . . . . . . . . . . 14 . . . . . . . . . . . . . . . . . . Retrieved Matter 424 | . . . . . . . . . . . . . . . . . . 424 . . . . . . . . . . . . . . . . . . Parts Self-Destructed 46 | . . . . . . . . . . . 5 16 . . . . . . . 1 2 . 22 . . . . . . . . . . . . . Prevented 14 | . . . . . . . . . . . . . . . . . . . . 1 . . 13 . . . . . . . . . . . . . Parts Restored . | . . . . . . . . . . . . . . . . . . . . . . . . . . . . . . . . . . . . . Kills | -11 -10 -9 -9 -9 -8 -8 -8 -8 -8 -7 -7 -7 -7 -6 -6 -6 -5 -5 -5 -5 -5 -5 -4 -4 -4 -4 -4 -4 -3 -3 -3 -2 -2 -1 -1 -1 ------- Run | Yrd Mat Mat Min Exi Min Mat Gar Mat Gar Fac Low Low Dat Pro Fac Gar Fac Was Fac Upp Upp War Pro Fac Ext Cet Arc Hub Res Arm Lab Res Tes Acc Com Ac0 Combat Hostiles Destroyed 503 | . 10 16 . 6 2 12 24 18 36 14 1 3 4 1 6 15 4 1 5 . . 13 12 28 31 7 1 15 25 102 . 2 11 42 30 6 Melee 1 | . . . . . . . . . 1 . . . . . . . . . . . . . . . . . . . . . . . . . . . Guns 387 | . 10 16 . 2 . 10 19 13 17 14 1 3 4 . 6 3 3 1 5 . . 6 11 15 19 1 1 15 25 83 . 2 11 41 30 . Cannons 48 | . . . . . . . . . 3 . . . . 1 . 7 1 . . . . 3 . 11 12 . . . . 5 . . . 1 . 4 AOE 47 | . . . . 4 2 2 5 5 11 . . . . . . 5 . . . . . 4 1 1 . . . . . 7 . . . . . . Classes Destroyed 29 | 2 4 4 . 3 1 1 1 . 1 . . 1 . 1 1 . . 1 . . . 3 . . . . . 1 1 1 . . . . 2 . Worker 13 | . . . . . 2 . . . . 2 . . . . . . . . . . . . . 1 2 . . 2 . . . . 1 2 1 . Builder 24 | . . 1 . . 1 1 . . . 3 . . . . 1 . . . . . . . . 3 3 . . 3 1 . . . 1 6 . . Tunneler 3 | 2 . . . . . . . . . . . . . . . . . . . . . . . . . . . . 1 . . . . . . . Hauler 12 | . 1 4 . . . 2 . 2 . . . . . . . . . . . . . . . 1 1 . . . . . . . . 1 . . Recycler 23 | 1 . 1 . . 3 . . 3 . 2 . . . . 2 . . . 1 . . . . 2 4 . . 1 . . . . . 2 1 . Minesweeper 3 | . . . . . . . . . . . . 1 . . . . . . . 1 . . 1 . . . . . . . . . . . . . Mechanic 4 | . . . . . . . . . . . . . . . 1 . . . . . . . . . . . . . . 2 . . . . 1 . Operator 16 | . 1 1 . . . . . 2 . . . . . . . . . . . . . . . . 1 . 9 . . 1 . . . 1 . . Turret 1 | . . . . 1 . . . . . . . . . . . . . . . . . . . . . . . . . . . . . . . . Watcher 16 | . . 2 . . . . . . . 1 . . . . . . . . . . . . . 1 1 . . 2 . 2 . . 1 4 2 . Swarmer 79 | . 5 3 . . 2 3 7 5 7 . . . . . . 7 . . . . . 1 4 5 4 . . 5 3 8 . . . 1 9 . Grunt 162 | . 5 6 . . . 5 8 7 8 7 . 2 . . . 7 . . 1 . . 4 3 18 8 . . 4 8 41 . . 6 9 5 . Brawler 21 | . . . . . . 1 1 . 2 1 . . . . . . . . . . . 3 . 1 . . . . . 12 . . . . . . Duelist 18 | . . 1 . . . . . 1 3 1 . . . . . . . . . . . . 1 . . . . . . 10 . . . . 1 . Protector 8 | . . . . . . . . . . . . . . . . . . . . . . 1 . . . . . . . 7 . . . . . . Sentry 64 | . . 6 . . . 3 7 4 7 2 1 1 . . 3 1 . . 1 . . . 1 2 9 . 1 1 7 5 . . . 2 . . Demolisher 1 | . . . . . . . . . . . . . . . . . . . . . . . . . . . . . 1 . . . . . . . Specialist 2 | . . . . . . . . . . . . . . . . . . . . . . . . . . . . . . 2 . . . . . . Hunter 40 | . . . . . . . 1 1 3 . . . . . 1 . 4 . . . . . . . 8 . . 2 2 1 . 2 2 13 . . Programmer 48 | . . . . . . . . . 6 3 . . . . 2 . . . 3 . . 1 2 2 . . . 2 . 12 . . 3 9 3 . Heavy 4 | . . . . . . . . . . . . . . . . . . . . . . . . . . . . 1 . . . . . 2 1 . Behemoth 6 | . . . . . . . . . . . . . . 1 . . . . . . . . 1 . 1 . . . . . . . . 2 1 . Compactor 1 | . . . . . . . . . . . . . . . . . . 1 . . . . . . . . . . . . . . . . . . Armor Guard 2 | . . . . . . . . . . . . . . . . . . . . . . . . . . . . . . 2 . . . . . . Cetus Guard 7 | . . . . . . . . . . . . . . . . . . . . . . . . . . 7 . . . . . . . . . . M Guard 1 | . . . . . . . . . . . . . . . . . . . . . . . . . . . . . . . . . . . 1 . Enhanced Grunt 8 | . . . . . . . . . . . . . 4 . . . . . . . . . . . . . . 2 . . . . . . . 2 Enhanced Sentry 1 | . . . . . . . . . . . . . . . . . . . . . . . . . . . . . . . . . . . . 1 Enhanced Programmer 2 | . . . . . . . . . . . . . . . . . . . . . . . . . . . . . . . . . . . . 2 Tracker 4 | . . . . . . . . . . . . . . . . . . . . . . . . . . . . . 1 1 . . . 2 . . Combat Programmer 5 | . . . . . . . . . . . . . . . . . . . . . . . . . . . . . 2 1 . . . 2 . . Striker 5 | . . . . . . . . . . . . . . . . . . . . . . 2 . . . . . . 1 . . . . . 2 . Executioner 5 | . . . . . . . . . . . . . . . . . . . . . . 1 . . . . . . . . . . . . 4 . Alpha 7 2 | . . . . . . . . . . . . . . . . . . . . . . . . . . . . . . . . . . . 2 . Zionite 8 | . . . . 8 . . . . . . . . . . . . . . . . . . . . . . . . . . . . . . . . Assembled 5 | . . . . 5 . . . . . . . . . . . . . . . . . . . . . . . . . . . . . . . . Surgeon 2 | . . . . . . . . . . . . . . . . . . 2 . . . . . . . . . . . . . . . . . . Thug 2 | . . . . . . . . . . . . . . . . . . 1 . . . 1 . . . . . . . . . . . . . . Butcher 1 | . . . . . . . . . . . . . . . . . . . . . . . . . 1 . . . . . . . . . . . Guerrilla 1 | . . . . . . . . . . . . . . . . . . . . . . . . . . . . . . . . . . . 1 . Fireman 1 | . . . . . . . . . . . . . . . . . . . . . . . . . . . . . . . . . . . 1 . Best Kill Streak 17 | 2 5 7 . 5 3 3 7 4 6 6 1 3 2 1 4 4 3 1 2 1 . 5 4 8 13 4 2 9 6 17 . 2 6 10 8 2 Combat Bots Only 17 | . 5 7 . 5 2 3 7 3 6 4 1 3 2 1 3 4 3 1 2 . . 5 4 5 7 4 1 8 6 17 . 2 4 8 5 2 Max Kills in Single Turn 4 | 1 1 2 . 4 2 2 3 2 4 3 1 1 1 1 1 3 1 1 1 1 . 2 2 2 3 2 1 4 3 4 . 2 2 3 3 1 Gunslinging 3 | . . 1 . . . . 1 . . 1 . . . . . . . . . . . . 1 . . . . 1 2 3 . 1 . 1 1 . Exploded 4 | . . . . 4 1 2 3 2 4 . . . . . . 3 . . . . . 1 1 1 . . . . . 4 . . . . . . Melee 1 | . . . . . . . . . 1 . . . . . . . . . . . . . . . . . . . . . . . . . . . Uniques/NPCs Destroyed 8 | . . . . 4 . . . . . . . . 1 . . . . . . . . . . . . . . . . . . . . . 1 2 8R-AWN (-9/Exiles) EX-HEX (-9/Exiles) EX-DEC (-9/Exiles) EX-BIN (-9/Exiles) Data Miner (-7/Data Miner) MAIN.C Shell (-1/Command) A8 (-1/Access_0) Architect (-1/Access_0) Combat | -11 -10 -9 -9 -9 -8 -8 -8 -8 -8 -7 -7 -7 -7 -6 -6 -6 -5 -5 -5 -5 -5 -5 -4 -4 -4 -4 -4 -4 -3 -3 -3 -2 -2 -1 -1 -1 -------- Run | Yrd Mat Mat Min Exi Min Mat Gar Mat Gar Fac Low Low Dat Pro Fac Gar Fac Was Fac Upp Upp War Pro Fac Ext Cet Arc Hub Res Arm Lab Res Tes Acc Com Ac0 Hostile Shots Fired 3428 | . 113 61 . 79 12 38 113 53 126 92 11 60 46 30 184 82 36 5 25 . 14 123 76 274 221 24 1 77 95 441 . 8 100 267 95 446 Missed 927 | . 35 8 . 13 3 12 27 16 39 37 4 19 10 7 58 29 9 . 10 . 3 52 23 77 70 12 1 23 19 91 . 4 18 59 23 116 Hits 2501 | . 78 53 . 66 9 26 86 37 87 55 7 41 36 23 126 53 27 5 15 . 11 71 53 197 151 12 . 54 76 350 . 4 82 208 72 330 Melee 79 | . . 4 . . 5 . . 1 3 8 2 2 . . . . . 5 . . 11 2 . 3 . . . . . 33 . . . . . . Projectile 2422 | . 78 49 . 66 4 26 86 36 84 47 5 39 36 23 126 53 27 . 15 . . 69 53 194 151 12 . 54 76 317 . 4 82 208 72 330 AOE 7 | . . . . . . . . . . . . . . . . . . . . . . 1 . . . . . . 4 1 . . . . 1 . Critical Strikes 199 | . . 3 . 40 1 2 2 1 7 3 . . . 1 . 1 . 4 1 . . 5 4 12 13 3 . 3 2 20 . . 13 19 8 31 Actively Blocked 54 | . . . . . . . . . . . . . . . . . . . . . . . . . . . . . 1 8 . . 12 15 . 18 Part Disruptions 6 | . . . . . . . . . . . . . . . . . . . . . . . . . . . . . . 1 . . 1 1 1 2 Damage Taken 49779 | . 879 800 . 1091 353 398 1026 530 1344 890 51 401 1586 542 1401 766 493 199 255 . 45 1361 1062 3918 2844 176 . 1153 1238 9998 . 65 974 3457 1746 8737 Core 4890 | . 162 64 . 160 94 44 74 77 181 150 . 6 263 . 276 75 11 . 62 . . 150 18 325 204 15 . 86 49 867 . 9 44 149 127 1148 Absorbed by Shields 6553 | . . . . . . . 126 29 6 93 2 . 92 48 . 182 148 . 53 . . 357 . 23 11 65 . 90 197 421 . 66 731 1328 737 1748 Reduced by Siege Mode 760 | . . . . . . . . . . . . . . . . . . . . . . . 10 9 . . . 24 12 493 . . . 10 19 183 Redirected to Shielding 48 | . . . . . . . . . . . . . . . . . . . . . . . . . . . . . . . . . . . . 48 Ignored by Resistances 889 | . . . . . . . . . . . . . . . . . . . . . . . . . 494 101 . . 197 97 . . . . . . Regen/Repaired (Parts) 1408 | . . 99 . . . . . . . . . . . . . . 193 . 73 . . . . . . . . . 191 . . 114 28 684 26 . Core Remaining (%) 50 | 100 35 . . . 20 . . . 31 . . . . 40 . 58 . . . . . . 75 . . . . 45 . . 29 . 96 . . 26 Volleys Fired 1680 | 10 75 58 . 72 64 26 45 44 79 37 4 15 21 53 45 40 12 34 15 2 5 23 36 82 71 13 22 35 47 203 3 8 59 120 148 54 Largest 7 | 2 2 4 . 4 4 4 4 4 4 4 4 4 4 4 4 4 5 5 5 5 5 5 5 6 6 5 6 6 6 6 1 6 6 7 7 7 Hottest 700 | 40 120 100 . 92 92 92 106 92 99 112 112 112 112 236 213 124 147 283 157 157 157 232 227 324 237 159 204 206 206 400 120 270 237 273 700 700 Shots Fired 5416 | 20 122 191 . 221 70 98 155 163 184 131 17 54 74 74 90 91 47 77 59 10 25 90 101 195 296 16 96 117 221 732 4 24 189 544 491 327 Gun 4505 | 20 109 179 . 207 68 97 144 159 149 126 17 51 73 16 65 57 39 70 59 10 25 70 96 113 207 5 96 117 221 689 . 19 157 501 453 21 Cannon 782 | . . . . . . . . . 21 5 . . 1 58 25 28 8 . . . . 17 . 82 86 . . . . 25 4 5 32 43 37 305 Launcher 101 | . . 3 . 14 2 1 11 4 14 . . 3 . . . 5 . 7 . . . 3 5 . . 11 . . . 18 . . . . . . Special 28 | . 13 9 . . . . . . . . . . . . . 1 . . . . . . . . 3 . . . . . . . . . 1 1 Kinetic 4546 | 20 109 179 . 207 68 97 144 159 106 126 17 51 73 16 78 85 47 28 51 10 25 57 80 139 293 5 96 117 221 689 . 19 157 501 453 23 Thermal 630 | . 13 9 . . . . . . . . . . 1 58 12 . . 42 8 . . . 16 22 . . . . . 25 4 5 32 43 37 303 Explosive 67 | . . 3 . 14 2 1 11 4 14 . . 3 . . . 5 . 7 . . . 3 . . . . . . . . . . . . . . Electromagnetic 137 | . . . . . . . . . 64 5 . . . . . . . . . . . . 5 34 . 11 . . . 18 . . . . . . Entropic 30 | . . . . . . . . . . . . . . . . . . . . . . 30 . . . . . . . . . . . . . . Robot Hit Streak 47 | 8 11 20 . 26 29 16 30 26 28 15 6 7 8 7 10 9 7 12 7 14 15 14 32 24 27 1 11 27 24 38 . 10 24 44 47 24 Robot Miss Streak 9 | 2 4 3 . 4 9 3 2 3 3 4 3 4 3 1 7 6 5 2 8 1 4 2 2 6 5 1 4 2 5 2 . 1 2 3 4 5 Penetration Max 2 | . . . . . . . . . 1 1 . 1 1 . 2 . . . . . . 2 . 2 1 . 1 1 1 2 . . 1 2 1 . Secondary Targets 80 | . 3 3 . . . 2 4 . . 3 . 1 1 . . . . 1 . . . . 2 1 3 . . 5 8 20 . 1 3 9 10 . Max Gunslinging Chain 3 | . 1 1 . . . 1 1 . . 1 . 1 1 . . . . 1 . . . . 1 1 1 . . 2 2 3 . 1 1 2 2 . Autonomous 43 | . . . . . . . . . 43 . . . . . . . . . . . . . . . . . . . . . . . . . . . Shots Hit Robots 3478 | 14 72 128 . 145 34 69 109 118 131 75 12 26 51 16 64 72 31 60 25 13 22 58 60 127 185 1 40 53 154 456 . 17 103 368 369 200 Core Hits 1827 | 6 28 44 . 55 10 28 61 57 70 45 2 11 28 3 41 51 16 11 17 6 6 32 26 76 86 10 23 43 74 338 . 7 35 170 212 99 Critical Kills 102 | . . 1 . 2 . 1 . . . 1 . 1 . . 5 . . . . . . 1 1 2 9 1 5 5 8 41 . 1 . 7 8 2 Critical Parts Destroyed 148 | . . . . . . . 2 1 3 3 1 . . . 5 . . . . . . 5 . 6 11 . 5 6 11 38 . . . 14 37 . Critical Strikes 328 | . . 1 . 3 . 1 2 1 6 4 2 1 1 . 14 4 . 2 . . . 7 2 20 30 1 10 11 23 85 . 1 . 34 58 4 Burn 6 | . . . . . . . . . . . . . . . . . . 2 . . . . 1 3 . . . . . . . . . . . . Meltdown 3 | . . . . . . . . . . . . . . . . . . . . . . . . . . . . . . 1 . . . . . 2 Destroy 291 | . . 1 . 3 . 1 2 1 3 4 2 1 1 . 14 . . . . . . 3 1 8 23 1 10 11 23 84 . 1 . 34 58 1 Blast 19 | . . . . . . . . . . . . . . . . 2 . . . . . . . 9 7 . . . . . . . . . . 1 Corrupt 3 | . . . . . . . . . 3 . . . . . . . . . . . . . . . . . . . . . . . . . . . Sever 2 | . . . . . . . . . . . . . . . . 2 . . . . . . . . . . . . . . . . . . . . Detonate 4 | . . . . . . . . . . . . . . . . . . . . . . 4 . . . . . . . . . . . . . . Melee Attacks 240 | . . . . . 8 7 38 6 12 32 . 19 6 . 2 42 17 9 16 6 6 . . 7 7 . . . . . . . . . . . Impact . | . . . . . . . . . . . . . . . . . . . . . . . . . . . . . . . . . . . . . Slashing 240 | . . . . . 8 7 38 6 12 32 . 19 6 . 2 42 17 9 16 6 6 . . 7 7 . . . . . . . . . . . Piercing . | . . . . . . . . . . . . . . . . . . . . . . . . . . . . . . . . . . . . . Sneak Attacks 15 | . . . . . 3 1 . . . . . 1 1 . . . . 5 1 1 . . . . 2 . . . . . . . . . . . Combat Hostiles . | . . . . . . . . . . . . . . . . . . . . . . . . . . . . . . . . . . . . . Follow-up Attacks . | . . . . . . . . . . . . . . . . . . . . . . . . . . . . . . . . . . . . . Damage Inflicted 105119 | 121 644 1414 . 2506 964 1240 2760 1933 4118 2220 249 558 1214 539 1174 2691 506 1627 671 462 739 4030 2082 4315 6022 1133 1213 2703 4068 15422 . 360 3095 12265 11559 8502 Guns 75794 | 121 583 1413 . 2143 487 1063 1559 1675 2081 2087 249 479 1149 179 500 788 338 1246 544 244 290 2095 1768 2261 4090 22 1213 2203 4034 11523 . 311 3076 11964 11515 501 Cannons 15902 | . . . . . . . . . 477 133 . . . 360 507 1053 168 . . . . 941 . 1795 1669 . . . . 695 . 49 . 223 44 7788 Explosions 10697 | . . . . 363 224 114 1201 258 1414 . . . . . 167 469 . . . . . 909 314 259 . 1111 . 477 . 3204 . . . . . 213 Melee 2343 | . . . . . 253 63 . . 146 . . 79 65 . . 381 . 381 89 218 449 . . . 219 . . . . . . . . . . . Ramming 331 | . 9 1 . . . . . . . . . . . . . . . . 38 . . 85 . . 44 . . 23 34 . . . 19 78 . . Kinetic 77517 | 121 583 1413 . 2143 487 1063 1559 1675 1217 2087 249 479 1149 179 807 1841 506 509 455 244 290 1865 1438 2947 5759 22 1213 2203 4034 11523 . 311 3076 11964 11515 591 Thermal 13255 | . 52 . . . . . . . . . . . . 360 367 . . 737 89 . . 825 330 570 . 297 . . . 1401 . 49 . 223 44 7911 Explosive 4127 | . . . . 363 224 114 1201 258 1414 . . . . . . 469 . . . . . 84 . . . . . . . . . . . . . . Electromagnetic 6375 | . . . . . . . . . 1341 133 . . . . . . . . . . . . 314 798 . 814 . 477 . 2498 . . . . . . Impact . | . . . . . . . . . . . . . . . . . . . . . . . . . . . . . . . . . . . . . Slashing 2343 | . . . . . 253 63 . . 146 . . 79 65 . . 381 . 381 89 218 449 . . . 219 . . . . . . . . . . . Piercing . | . . . . . . . . . . . . . . . . . . . . . . . . . . . . . . . . . . . . . Entropic 1171 | . . . . . . . . . . . . . . . . . . . . . . 1171 . . . . . . . . . . . . . . Highest Corruption 58 | . 2 . . . . . . . 4 8 8 8 8 8 2 2 1 1 1 1 1 1 2 10 10 15 15 10 . 58 58 . 6 4 12 17 Average Corruption 6 | . 2 . . . . . . . 2 2 8 8 8 8 1 2 1 1 1 1 1 1 1 7 7 6 12 10 . 16 58 . 5 2 8 3 Corruption Purged 46 | . . . . . . . . . 5 . . . . . . . . . . . . . 1 . 10 . 18 . . . . . . . 12 . Corruption Blocked . | . . . . . . . . . . . . . . . . . . . . . . . . . . . . . . . . . . . . . Effects 532 | . 4 . . . . . . . 7 16 14 43 23 65 6 25 4 10 7 2 4 2 16 33 12 6 30 . . 91 18 . 9 9 61 15 Message Errors 100 | . 1 . . . . . . . 1 3 3 7 4 14 1 3 2 . 3 . 1 1 3 8 2 1 4 . . 16 1 . 3 1 14 3 Matter Fused 115 | . 1 . . . . . . . 2 2 5 13 4 17 3 5 . 4 1 1 1 . 3 6 3 2 10 . . 15 3 . 2 . 12 . Heat Flow Errors 58 | . 1 . . . . . . . . 4 2 3 1 7 . 8 2 1 1 . . . 2 . 3 . 2 . . 8 3 . . 3 6 1 Energy Discharges 73 | . 1 . . . . . . . . 1 1 12 4 11 1 3 . 2 1 1 . . 3 4 1 1 5 . . 7 3 . 1 2 5 3 Parts Rejected 7 | . . . . . . . . . . 1 . . 1 . . . . 1 . . . . . 3 . . . . . 1 . . . . . . Parts Fused 6 | . . . . . . . . . . . . . . . . . . . . . . 1 . 1 1 . . . . 1 . . 1 . 1 . Data Loss (minor) 54 | . . . . . . . . . 2 2 . 4 3 7 1 4 . 1 . . 2 . 1 4 1 1 3 . . 4 3 . 1 1 7 2 Data Loss (major) 21 | . . . . . . . . . 1 2 2 1 . 3 . . . . . . . . . 1 1 . . . . 5 2 . . . 2 1 Misfires 24 | . . . . . . . . . . . 1 3 1 4 . . . . 1 . . . 1 4 . . 2 . . . 1 . . . 4 2 Alerts 17 | . . . . . . . . . 1 1 . . 1 2 . 1 . 1 . . . . 2 . . . 2 . . . 2 . . . 3 1 Misdirections 2 | . . . . . . . . . . . . . . . . . . . . . . . . . . . . . . 2 . . . . . . Weapon Failures 55 | . . . . . . . . . . . . . 4 . . 1 . . . . . . 1 2 . 1 2 . . 32 . . 1 2 7 2 Overload Shots 2 | . . . . . . . . . . . . . . . . . . . . . . . . . . . . . . . . . . . 2 . Overflow Damage 1088 | . . . . . 136 3 . 7 74 15 . 39 . . 27 91 . 103 59 5 158 96 . 123 84 . . . . 27 . . . 33 4 4 Projectiles 222 | . . . . . . . . . . 15 . . . . . 68 . . . . . 96 . . 35 . . . . . . . . . 4 4 Explosions 280 | . . . . . 22 3 . 7 48 . . . . . 27 23 . . . . . . . 123 . . . . . 27 . . . . . . Melee 586 | . . . . . 114 . . . 26 . . 39 . . . . . 103 59 5 158 . . . 49 . . . . . . . . 33 . . Knockbacks 34 | . . . . . . . . . . . . . . . 5 4 1 . 1 . . 9 . 10 1 . . . . . . . 1 1 . 1 Impact 4 | . . . . . . . . . . . . . . . . . . . 1 . . 1 . . . . . . . . . . 1 1 . . Kinetic 27 | . . . . . . . . . . . . . . . 5 4 1 . . . . 7 . 8 1 . . . . . . . . . . 1 Secondary 3 | . . . . . . . . . . . . . . . . . . . . . . 1 . 2 . . . . . . . . . . . . Self-Inflicted Damage 1114 | . . 41 . . . 10 66 . 16 . . . . . 194 114 . 11 . . . . . 96 . . . 69 . 344 . . . 61 . 92 Shots 40 | . . 2 . . . 1 2 . 1 . . . . . 3 4 . 1 . . . . . 1 . . . 1 . 21 . . . 1 . 2 Rammed 16 | . 1 1 . . . . . . . . . . . . . . . . 1 . . 3 . . 3 . . 1 . . . . 3 3 . . Targets Rammed 18 | . 1 1 . . . . . . . . . . . . . . . . 1 . . 3 . . 3 . . 1 1 . . . 3 4 . . Kicked . | . . . . . . . . . . . . . . . . . . . . . . . . . . . . . . . . . . . . . Crushed 2 | . . . . . . . . . . . . . . . . . . . . . . . . . . . . . 1 . . . . 1 . . Highest Temperature 428 | . 138 126 . 308 12 225 272 138 144 270 242 339 385 420 197 282 334 168 140 18 36 331 427 406 372 78 371 406 96 414 206 189 410 428 197 106 Average Temperature 82 | . 28 25 . 100 9 69 75 32 50 78 68 98 137 52 76 98 97 64 18 12 15 144 137 124 70 39 130 150 40 114 66 71 82 115 43 58 Received Heat Transfer 5995 | . 312 225 . 9 . 180 296 240 243 249 18 180 . 66 222 230 . . 63 . . 100 175 868 780 . . 102 63 1222 . . 38 51 13 50 Effects 18 | . . . . 3 . . . . . 1 . . 1 1 . 1 1 . . . . 1 3 1 . . 3 . . 1 . . 1 . . . Shutdowns 4 | . . . . . . . . . . . . . 1 1 . . . . . . . . 1 . . . 1 . . . . . . . . . Energy Bleed 5 | . . . . 1 . . . . . 1 . . . . . . . . . . . 1 . 1 . . 1 . . . . . . . . . Interference 5 | . . . . 2 . . . . . . . . . . . 1 . . . . . . 1 . . . . . . . . . 1 . . . Matter Decay 2 | . . . . . . . . . . . . . . . . . 1 . . . . . . . . . . . . 1 . . . . . . Short Circuit 2 | . . . . . . . . . . . . . . . . . . . . . . . 1 . . . 1 . . . . . . . . . Siege Activations 45 | . . . . . . . . . . . . . . . . . . . . . . . 5 1 2 . 1 1 5 23 . . . 1 3 3 Total Turns 516 | . . . . . . . . . . . . . . . . . . . . . . . 33 23 6 . 8 14 50 283 . . . 6 50 43 Longest Duration 29 | . . . . . . . . . . . . . . . . . . . . . . . 22 23 5 . 8 14 21 29 . . . 6 24 21 Martial Activations . | . . . . . . . . . . . . . . . . . . . . . . . . . . . . . . . . . . . . . Shielding Activations . | . . . . . . . . . . . . . . . . . . . . . . . . . . . . . . . . . . . . . Robots Disrupted . | . . . . . . . . . . . . . . . . . . . . . . . . . . . . . . . . . . . . . Combat Hostiles . | . . . . . . . . . . . . . . . . . . . . . . . . . . . . . . . . . . . . . Robots Corrupted 17 | . . . . . . . . . 4 . . . . . . . . . . . . . . 1 . 6 . . . 6 . . . . . . Combat Hostiles 17 | . . . . . . . . . 4 . . . . . . . . . . . . . . 1 . 6 . . . 6 . . . . . . Parts Fried 42 | . . . . . . . . . 12 1 . . . . . . . . . . . . 2 7 3 4 . 2 . 11 . . . . . . Impact Corruptions 2 | . . . . . . . . . . . . . . . . . . . . . . . . . 1 . . . . . . . . 1 . . Robots Melted 3 | . . . . . . . . . . . . . . . . . . . . . . . . . . . . . . 1 . . . . . 2 Combat Hostiles 3 | . . . . . . . . . . . . . . . . . . . . . . . . . . . . . . 1 . . . . . 2 Parts Melted 18 | . . . . . . . . . . . . . . . . . . . . . . . 1 2 . . . . . 7 . . . . . 8 Heat Transferred 8166 | . 100 . . . . . . . . . . . . . 100 . . 1554 185 . . 551 592 1150 . 200 . . . 1081 . 37 . 129 37 2450 Parts Sabotaged 8 | . . . . . . . . . . . . . . . . . . . . . . . . . . . . . . 8 . . . . . . Parts Stolen 7 | . . . . . . . . . . . 1 1 . . . . . . . . 5 . . . . . . . . . . . . . . . Parts Stripped . | . . . . . . . . . . . . . . . . . . . . . . . . . . . . . . . . . . . . . Power Chain Reactions 12 | . . . . . . . . . . . . . . . . . . . . . . . . 1 . 1 . . . 8 . . . . . 2 Alert | -11 -10 -9 -9 -9 -8 -8 -8 -8 -8 -7 -7 -7 -7 -6 -6 -6 -5 -5 -5 -5 -5 -5 -4 -4 -4 -4 -4 -4 -3 -3 -3 -2 -2 -1 -1 -1 ------- Run | Yrd Mat Mat Min Exi Min Mat Gar Mat Gar Fac Low Low Dat Pro Fac Gar Fac Was Fac Upp Upp War Pro Fac Ext Cet Arc Hub Res Arm Lab Res Tes Acc Com Ac0 Maximum Alert Level 5 | . . . . . . . 4 3 5 3 . . . . . 3 2 . . . . . . 3 1 2 1 3 3 5 . . 1 3 4 . Low Security (%) 37 | 100 100 100 100 . 100 100 15 . . . . . . . 100 24 67 100 100 . . . . 12 56 3 52 32 . . . 100 56 6 . . Level 1 9 | . . . . . . . 11 . . . . . . . . 11 . . . . . . . 34 43 91 47 13 29 . . . 43 13 . . Level 2 11 | . . . . . . . 17 88 19 2 . . . . . 37 32 . . . . . . 18 . 5 . 19 30 5 . . . 34 . . Level 3 27 | . . . . . . . 45 11 23 97 . . . . . 26 . . . . . . . 34 . . . 35 39 43 . . . 44 58 . Level 4 11 | . . . . . . . 10 . 36 . . . . . . . . . . . . . . . . . . . . 17 . . . . 41 . Level 5 2 | . . . . . . . . . 19 . . . . . . . . . . . . . . . . . . . . 24 . . . . . . High Security . | . . . . . . . . . . . . . . . . . . . . . . . . . . . . . . 9 . . . . . . Max Security . | . . . . . . . . . . . . . . . . . . . . . . . . . . . . . . . . . . . . . Peak Influence 2479 | 5 100 139 7 . 102 77 1164 799 1984 1041 . . . . 116 988 518 34 75 . . . . 910 382 408 327 851 980 2479 . 44 278 1021 1074 . Initial 1041 | . . . 7 . . . 33 567 448 1041 . . . . . 8 518 24 . . . . . 49 338 201 135 3 430 504 . . . 159 633 . Average 436 | 1 20 51 4 . 12 21 679 577 1168 864 . . . . 37 528 196 2 10 . . . . 496 163 322 186 446 611 1262 . 3 123 632 951 . Influence Increases 20262 | 15 336 555 . . 149 383 1171 1035 1606 540 20 80 20 30 345 1010 259 64 278 10 20 260 300 1483 957 367 353 1158 990 2957 . 102 570 1450 993 396 Destroy 0b10 Robot/C 10180 | . 200 320 . . 40 240 560 540 720 280 20 60 20 20 120 440 80 . 120 . . 240 240 560 620 160 80 400 500 1940 . 40 220 840 560 . Destroy 0b10 Robot/NC 765 | 15 10 45 . . 30 15 10 45 . 40 . 20 . . 20 10 25 . 5 10 20 5 5 40 65 10 45 40 10 60 . . 15 80 70 . Destroy Leader 1750 | . 52 102 . . . 64 30 158 50 82 . . . 10 60 30 26 . 40 . . . 40 94 84 . . 64 140 318 . 10 32 200 64 . Allied During Kill 629 | . . . . . . . 22 44 12 5 . . . . . 99 25 . 6 . . . . . 19 98 125 87 . 87 . . . . . . Successful Hack 459 | . 34 32 . . . 14 7 9 26 69 . . . . 12 . 11 . 28 . . . . 6 15 9 . . 87 24 . 40 36 . . . Select Force Hacks 130 | . 30 . . . . . . . . . . . . . . . . . . . . . . . . . . 100 . . . . . . . . Disable Machine 1395 | . . 15 . . . 15 30 135 45 30 . . . . 75 30 . . 30 . . . . 150 . . 75 180 30 225 . . 150 90 30 60 Anti-Garrison Action 1900 | . . . . . . . 400 . 550 . . . . . . 300 . . . . . . . 400 . . . . 200 . . . . . 50 . Destroy Structure 2379 | . 10 26 . . 19 20 112 29 128 34 . . . . 43 71 92 64 34 . . . . 158 124 60 28 242 8 198 . 12 117 225 189 336 Partial Spotted 30 | . . . . . . . . 30 . . . . . . . . . . . . . . . . . . . . . . . . . . . . Lose Combat Pursuer 645 | . . 15 . . 60 15 . 45 75 . . . . . 15 30 . . 15 . . 15 15 75 30 30 . 45 15 105 . . . 15 30 . Influence Decreases 20076 | 15 336 535 20 . 149 332 58 1509 312 1720 497 407 20 30 333 34 1177 134 215 73 20 118 363 870 1289 389 681 347 849 1450 2469 102 304 725 876 1318 Entered New Map 8505 | . . . 13 . . . 18 597 242 943 299 63 . . . 4 470 46 . 24 . . 142 30 354 159 203 7 391 458 2469 . . 107 358 1108 Time Decay 8580 | 15 286 514 7 . 148 302 . 592 . 577 198 334 20 30 283 . 247 66 169 49 20 88 201 470 585 180 458 279 458 622 . 102 304 498 478 . Lost Part 1441 | . 50 21 . . . 20 . . 70 10 . 10 . . 50 30 10 10 . . . 30 20 220 150 10 . 30 . 330 . . . 120 40 210 Lost Ally 302 | . . . . . 1 10 40 20 . 40 . . . . . . . 12 20 . . . . . 28 40 20 31 . 40 . . . . . . Purge Threat 1248 | . . . . . . . . 300 . 150 . . . . . . 450 . 26 . . . . 150 172 . . . . . . . . . . . Squads Dispatched 103 | . 4 1 . . . 1 . 5 . 7 . . . . 3 . . . 4 . . . . 4 3 . . 3 8 28 . 3 6 15 8 . Investigation 22 | . 2 . . . . . . 2 . 2 . . . . 1 . . . 2 . . . . 2 . . . 2 4 1 . 1 1 1 1 . Extermination 19 | . . . . . . . . . . 3 . . . . 1 . . . 1 . . . . 1 . . . 1 . 4 . . 2 3 3 . Reinforcement 28 | . 2 1 . . . 1 . 2 . 1 . . . . 1 . . . 1 . . . . 1 3 . . . 3 3 . . 2 5 2 . Assault 24 | . . . . . . . . 1 . 1 . . . . . . . . . . . . . . . . . . . 18 . . . 2 2 . Garrison 3 | . . . . . . . . . . . . . . . . . . . . . . . . . . . . . . . . . . 3 . . Intercept 7 | . . . . . . . . . . . . . . . . . . . . . . . . . . . . . 1 2 . 2 1 1 . . Searches Triggered . | . . . . . . . . . . . . . . . . . . . . . . . . . . . . . . . . . . . . . Unchained Authorized 1 | . . . . . . . . . . . . . . . . . . . . . . . . . . . . . . . . . 1 . . . Construction Impeded 3 | . . . . . . . . . . . . . . . . . . . . . . . . 1 1 . . . . . . . . 1 . . Haulers Reinforced 3 | . . . . . . . . . . . . . . . . . . . . . . . . . . . . . . . . . . 3 . . Active Scanning Responses . | . . . . . . . . . . . . . . . . . . . . . . . . . . . . . . . . . . . . . Cargo Convoy Interrupts . | . . . . . . . . . . . . . . . . . . . . . . . . . . . . . . . . . . . . . Stealth | -11 -10 -9 -9 -9 -8 -8 -8 -8 -8 -7 -7 -7 -7 -6 -6 -6 -5 -5 -5 -5 -5 -5 -4 -4 -4 -4 -4 -4 -3 -3 -3 -2 -2 -1 -1 -1 --------- Run | Yrd Mat Mat Min Exi Min Mat Gar Mat Gar Fac Low Low Dat Pro Fac Gar Fac Was Fac Upp Upp War Pro Fac Ext Cet Arc Hub Res Arm Lab Res Tes Acc Com Ac0 Distress Signals 57 | . 2 1 . . . 3 . 3 . 1 . . . . 1 . . . . . . . . . 2 2 1 2 6 2 . 4 1 5 21 . Communications Jammed 36 | . . . . . . . . . . . . . . . . . . . . . . . . . 1 . . 15 . 20 . . . . . . Distress Signals 35 | . . . . . . . . . . . . . . . . . . . . . . . . . 1 . . 14 . 20 . . . . . . Times Spotted 793 | . 25 24 . 15 8 20 29 42 38 22 3 5 4 1 14 23 4 13 7 . 3 46 13 37 42 8 16 25 33 139 . 9 13 52 34 26 Peak Tracking Total 18 | . 6 6 . 9 4 5 7 5 5 4 1 3 3 1 3 5 3 6 2 . 3 18 4 6 5 5 1 6 8 11 . 5 4 6 5 6 Tactical Retreats 37 | . . 1 . . 2 1 . 3 5 . . . . . 1 2 . 2 1 . . 1 1 2 1 1 . 1 1 7 . . . 1 2 1 Traps | -11 -10 -9 -9 -9 -8 -8 -8 -8 -8 -7 -7 -7 -7 -6 -6 -6 -5 -5 -5 -5 -5 -5 -4 -4 -4 -4 -4 -4 -3 -3 -3 -2 -2 -1 -1 -1 ------- Run | Yrd Mat Mat Min Exi Min Mat Gar Mat Gar Fac Low Low Dat Pro Fac Gar Fac Was Fac Upp Upp War Pro Fac Ext Cet Arc Hub Res Arm Lab Res Tes Acc Com Ac0 Traps Triggered 47 | . 3 . . . . . 8 2 5 2 . . . . . 7 3 . 2 . . . . 1 1 . . . . 5 . . . 1 7 . Indirectly 2 | . . . . . . . . . . . . . . . . . . . . . . . . . . . . . . 2 . . . . . . Trap Hack Attempts . | . . . . . . . . . . . . . . . . . . . . . . . . . . . . . . . . . . . . . Triggered . | . . . . . . . . . . . . . . . . . . . . . . . . . . . . . . . . . . . . . Disarmed . | . . . . . . . . . . . . . . . . . . . . . . . . . . . . . . . . . . . . . Reprogrammed . | . . . . . . . . . . . . . . . . . . . . . . . . . . . . . . . . . . . . . Reused . | . . . . . . . . . . . . . . . . . . . . . . . . . . . . . . . . . . . . . Traps Extracted . | . . . . . . . . . . . . . . . . . . . . . . . . . . . . . . . . . . . . . Installed 1 | . . . . . . . . . . . . . . . . . . . . . . . . 1 . . . . . . . . . . . . Triggered . | . . . . . . . . . . . . . . . . . . . . . . . . . . . . . . . . . . . . . Most Traps Carried 5 | . . . . . . . . . . . . 1 1 . . . . . . . . . 5 3 . . . . . . . . . . . . Machines | -11 -10 -9 -9 -9 -8 -8 -8 -8 -8 -7 -7 -7 -7 -6 -6 -6 -5 -5 -5 -5 -5 -5 -4 -4 -4 -4 -4 -4 -3 -3 -3 -2 -2 -1 -1 -1 ---------- Run | Yrd Mat Mat Min Exi Min Mat Gar Mat Gar Fac Low Low Dat Pro Fac Gar Fac Was Fac Upp Upp War Pro Fac Ext Cet Arc Hub Res Arm Lab Res Tes Acc Com Ac0 Machines Disabled 130 | . . 1 . 6 . 1 9 9 15 2 . . . . 5 6 . . 2 . . 1 . 10 3 . 5 12 2 15 1 . 11 6 4 4 Max in Single Turn 5 | . . 1 . 1 . 1 2 2 2 1 . . . . 5 1 . . 1 . . 1 . 4 2 . 2 5 1 1 1 . 1 2 2 1 Garrison Access 11 | . . . . . . . . . . . . . . . . . . . 2 . . . . 2 . . . 1 3 . . 3 . . . . Garrison Relay 14 | . . . . . . . 5 . 5 . . . . . . 4 . . . . . . . . . . . . . . . . . . . . Phase Generator 3 | . . . . . . . 1 . 1 . . . . . . . . . . . . . . . . . . . . . . . . . 1 . Network Hub 3 | . . . . . . . . . . . . . . . . . . . . . . . . . . . . 3 . . . . . . . . Energy Cycler 1 | . . . . . . . . . . . . . . . . . . . . . . . . . . . . . . 1 . . . . . . Machines Repaired . | . . . . . . . . . . . . . . . . . . . . . . . . . . . . . . . . . . . . . Machines Dismantled . | . . . . . . . . . . . . . . . . . . . . . . . . . . . . . . . . . . . . . Machines Sabotaged 2 | . . . . . . . . . . . . . . . . . . . . . . . . . . . . 2 . . . . . . . . Overloaded Fab Kills . | . . . . . . . . . . . . . . . . . . . . . . . . . . . . . . . . . . . . . Hacking | -11 -10 -9 -9 -9 -8 -8 -8 -8 -8 -7 -7 -7 -7 -6 -6 -6 -5 -5 -5 -5 -5 -5 -4 -4 -4 -4 -4 -4 -3 -3 -3 -2 -2 -1 -1 -1 --------- Run | Yrd Mat Mat Min Exi Min Mat Gar Mat Gar Fac Low Low Dat Pro Fac Gar Fac Was Fac Upp Upp War Pro Fac Ext Cet Arc Hub Res Arm Lab Res Tes Acc Com Ac0 Machines Accessed 122 | . 8 12 . 2 . 6 2 10 3 10 . 4 4 . 5 2 4 . 8 . . 1 1 6 8 1 . 3 7 3 2 4 4 1 1 . Terminals 67 | . 6 9 . . . 3 2 8 3 7 . 1 . . 3 2 1 . 3 . . . 1 2 7 1 . 2 . 2 . 1 2 . 1 . Fabricators 4 | . . . . . . . . . . . . . . . . . 1 . . . . . . . . . . . 1 1 . . 1 . . . Repair Stations 7 | . . 2 . . . . . . . 2 . . . . . . . . 1 . . . . . . . . . 1 . . . . 1 . . Recycling Units 12 | . 2 . . . . 2 . . . 1 . . . . 1 . 1 . 1 . . . . 1 1 . . . 1 . . 1 . . . . Scanalyzers 9 | . . 1 . . . . . 1 . . . . . . . . 1 . 1 . . . . 1 . . . . 2 . . 1 1 . . . Garrison Access 11 | . . . . . . 1 . 1 . . . . . . 1 . . . 2 . . . . 2 . . . 1 2 . . 1 . . . . Total Hacks 408 | . 35 39 . 2 . 26 3 30 9 24 . 9 29 . 14 3 14 . 24 . . 1 1 18 22 3 . 5 35 21 4 14 21 1 1 . Successful 230 | . 15 22 . 2 . 17 1 12 3 10 . 9 29 . 7 1 11 . 20 . . 1 1 7 9 1 . 3 11 13 4 7 12 1 1 . Failed 172 | . 19 16 . . . 9 2 17 6 14 . . . . 7 2 2 . 4 . . . . 11 13 2 . 2 23 8 . 6 9 . . . Catastrophic 25 | . . 1 . . . 2 1 1 2 4 . . . . 2 . . . . . . . . . . . . . 5 2 . 3 2 . . . Database Lockouts 6 | . 1 1 . . . . . 1 . . . . . . . . 1 . . . . . . . . . . . 1 . . 1 . . . . Manual 183 | . 31 29 . 1 . 21 1 14 5 17 . . . . 9 1 4 . 4 . . 1 . 8 7 1 . 3 8 6 . 4 5 1 2 . Terminals 212 | . 29 31 . . . 16 3 25 9 19 . 1 . . 6 3 6 . 6 . . . 1 8 21 3 . 3 . 5 . 6 10 . 1 . Fabricators 32 | . . . . . . . . . . . . . . . . . 4 . . . . . . . . . . . 6 16 . . 6 . . . Repair Stations 19 | . . 4 . . . . . . . 3 . . . . . . . . 6 . . . . . . . . . 5 . . . . 1 . . Recycling Units 35 | . 6 . . . . 7 . . . 2 . . . . 5 . 3 . 4 . . . . 3 1 . . . 3 . . 1 . . . . Scanalyzers 42 | . . 4 . . . . . 3 . . . . . . . . 1 . 6 . . . . 2 . . . . 15 . . 6 5 . . . Garrison Access 24 | . . . . . . 3 . 2 . . . . . . 3 . . . 2 . . . . 5 . . . 2 6 . . 1 . . . . Terminal Hacks 87 | . 2 4 . 2 . 1 1 4 3 3 . 9 29 . 1 1 5 . 4 . . 1 1 1 5 1 . . . 1 4 1 2 . 1 . Record 24 | . . . . 1 . . . . . . . 7 11 . . . . . . . . . 1 . . . . . . . 4 . . . . . Part Schematic 15 | . . 2 . . . . . . . . . . 10 . . . . . 2 . . . . . 1 . . . . . . . . . . . Robot Schematic 6 | . . . . . . . . . . . . . 5 . . . 1 . . . . . . . . . . . . . . . . . . . Robot Analysis 3 | . 2 . . . . 1 . . . . . . . . . . . . . . . . . . . . . . . . . . . . . . Prototype ID Bank 4 | . . . . . . . . . . . . . 3 . 1 . . . . . . . . . . . . . . . . . . . . . Open Door 9 | . . . . . . . 1 . 1 . . 2 . . . . . . . . . 1 . . 1 1 . . . 1 . . . . 1 . Branch Access Points 5 | . . 1 . . . . . . . 1 . . . . . . 1 . 1 . . . . . . . . . . . . 1 . . . . Emergency Access Points 1 | . . . . . . . . . 1 . . . . . . . . . . . . . . . . . . . . . . . . . . . Alert Level 1 | . . . . . . . . . . . . . . . . . . . . . . . . . . . . . . . . . 1 . . . Unreport Threat 10 | . . . . . . . . 2 . 1 . . . . . . 3 . 1 . . . . 1 2 . . . . . . . . . . . Locate Traps 1 | . . . . . . . . . . 1 . . . . . . . . . . . . . . . . . . . . . . . . . . Dispatch Records 1 | . . . . . . . . . . . . . . . . . . . . . . . . . 1 . . . . . . . . . . . Recall Reinforcements 2 | . . . . . . . . 1 . . . . . . . . . . . . . . . . . . . . . . . . 1 . . . Zone Layout 2 | . . 1 . . . . . 1 . . . . . . . . . . . . . . . . . . . . . . . . . . . . Patrol Navigation 2 | . . . . . . . . . 1 . . . . . . 1 . . . . . . . . . . . . . . . . . . . . Proto ID Catalog 1 | . . . . 1 . . . . . . . . . . . . . . . . . . . . . . . . . . . . . . . . Fabricator Hacks 18 | . . . . . . . . . . . . . . . . . 3 . . . . . . . . . . . 2 11 . . 2 . . . Network Status 1 | . . . . . . . . . . . . . . . . . 1 . . . . . . . . . . . . . . . . . . . Load Schematic 9 | . . . . . . . . . . . . . . . . . 1 . . . . . . . . . . . 1 6 . . 1 . . . Build 8 | . . . . . . . . . . . . . . . . . 1 . . . . . . . . . . . 1 5 . . 1 . . . Repair Station Hacks 11 | . . 4 . . . . . . . . . . . . . . . . 4 . . . . . . . . . 3 . . . . . . . Scan Component 6 | . . 2 . . . . . . . . . . . . . . . . 2 . . . . . . . . . 2 . . . . . . . Repair 5 | . . 2 . . . . . . . . . . . . . . . . 2 . . . . . . . . . 1 . . . . . . . Recycling Unit Hacks 9 | . . . . . . 4 . . . . . . . . 1 . 1 . 1 . . . . 2 . . . . . . . . . . . . Retrieve Matter 3 | . . . . . . 2 . . . . . . . . . . . . . . . . . 1 . . . . . . . . . . . . Retrieve Components 6 | . . . . . . 2 . . . . . . . . 1 . 1 . 1 . . . . 1 . . . . . . . . . . . . Scanalyzer 26 | . . 4 . . . . . 2 . . . . . . . . . . 6 . . . . 1 . . . . 4 . . 4 5 . . . Insert Component 5 | . . . . . . . . . . . . . . . . . . . . . . . . . . . . . 2 . . 2 1 . . . Analyze 1 | . . . . . . . . . . . . . . . . . . . . . . . . . . . . . 1 . . . . . . . Retrieve Study 20 | . . 4 . . . . . 2 . . . . . . . . . . 6 . . . . 1 . . . . 1 . . 2 4 . . . Garrison Access Hacks 8 | . . . . . . 1 . 1 . . . . . . 1 . . . 2 . . . . . . . . 1 1 . . 1 . . . . Unlock Access 3 | . . . . . . 1 . 1 . . . . . . 1 . . . . . . . . . . . . . . . . . . . . . Seal Access 5 | . . . . . . . . . . . . . . . . . . . 2 . . . . . . . . 1 1 . . 1 . . . . Unauthorized Hacks 71 | . 13 10 . . . 11 . 5 . 7 . . . . 4 . 2 . 3 . . . . 3 4 . . 2 1 1 . 1 3 1 . . Terminals 51 | . 12 10 . . . 7 . 5 . 6 . . . . 2 . . . . . . . . 1 3 . . 2 . . . 1 2 . . . Track 1 | . 1 . . . . . . . . . . . . . . . . . . . . . . . . . . . . . . . . . . . Assimilate 3 | . . . . . . 2 . . . 1 . . . . . . . . . . . . . . . . . . . . . . . . . . Botnet 20 | . 4 2 . . . 3 . 2 . 3 . . . . 1 . . . . . . . . 1 2 . . . . . . 1 1 . . . Disrupt 1 | . 1 . . . . . . . . . . . . . . . . . . . . . . . . . . . . . . . . . . . Operators 3 | . 1 1 . . . . . . . 1 . . . . . . . . . . . . . . . . . . . . . . . . . . Skim 21 | . 5 7 . . . 2 . 3 . 1 . . . . 1 . . . . . . . . . 1 . . . . . . . 1 . . . Sabotage 2 | . . . . . . . . . . . . . . . . . . . . . . . . . . . . 2 . . . . . . . . Fabricators 3 | . . . . . . . . . . . . . . . . . 1 . . . . . . . . . . . . 1 . . 1 . . . Prioritize 3 | . . . . . . . . . . . . . . . . . 1 . . . . . . . . . . . . 1 . . 1 . . . Repair Stations 2 | . . . . . . . . . . 1 . . . . . . . . . . . . . . . . . . . . . . . 1 . . Mechanics 1 | . . . . . . . . . . 1 . . . . . . . . . . . . . . . . . . . . . . . . . . Patch 1 | . . . . . . . . . . . . . . . . . . . . . . . . . . . . . . . . . . 1 . . Recycling Units 10 | . 1 . . . . 2 . . . . . . . . 2 . 1 . 3 . . . . . 1 . . . . . . . . . . . Monitor 1 | . . . . . . . . . . . . . . . . . . . 1 . . . . . . . . . . . . . . . . . Reject 1 | . . . . . . 1 . . . . . . . . . . . . . . . . . . . . . . . . . . . . . . Recyclers 2 | . . . . . . . . . . . . . . . 1 . . . 1 . . . . . . . . . . . . . . . . . Mask 5 | . . . . . . 1 . . . . . . . . 1 . 1 . 1 . . . . . 1 . . . . . . . . . . . Tunnel 1 | . 1 . . . . . . . . . . . . . . . . . . . . . . . . . . . . . . . . . . . Scanalyzers . | . . . . . . . . . . . . . . . . . . . . . . . . . . . . . . . . . . . . . Garrison Access 5 | . . . . . . 2 . . . . . . . . . . . . . . . . . 2 . . . . 1 . . . . . . . Reprogram 1 | . . . . . . 1 . . . . . . . . . . . . . . . . . . . . . . . . . . . . . . Intercept 1 | . . . . . . 1 . . . . . . . . . . . . . . . . . . . . . . . . . . . . . . Jam 3 | . . . . . . . . . . . . . . . . . . . . . . . . 2 . . . . 1 . . . . . . . Data Cores Recovered 1 | . . . . . . . . 1 . . . . . . . . . . . . . . . . . . . . . . . . . . . . Used 1 | . . . . . . . . 1 . . . . . . . . . . . . . . . . . . . . . . . . . . . . Hacking Detections 91 | . 6 11 . . . 5 1 10 2 10 . 1 . . 5 2 3 . 6 . . . 1 5 7 1 . . 6 3 . 3 3 . . . Full Trace Events 9 | . . . . . . 1 . 1 . 1 . . . . 1 . . . 1 . . . . . . . . . 2 1 . . 1 . . . Feedback Events . | . . . . . . . . . . . . . . . . . . . . . . . . . . . . . . . . . . . . . Feedback Blocked . | . . . . . . . . . . . . . . . . . . . . . . . . . . . . . . . . . . . . . Robot Schematics Acquired 6 | . . . . . . . . . . . . . 5 . . . 1 . . . . . . . . . . . . . . . . . . . Robots Built 1 | . . . . . . . . . . . . . . . . . 1 . . . . . . . . . . . . . . . . . . . Authchips 1 | . . . . . . . . . . . . . . . . . 1 . . . . . . . . . . . . . . . . . . . Time 58 | . . . . . . . . . . . . . . . . . 58 . . . . . . . . . . . . . . . . . . . Total Robot Build Rating 3 | . . . . . . . . . . . . . . . . . 3 . . . . . . . . . . . . . . . . . . . Part Schematics Acquired 16 | . . 2 . . . . . . . . . . 10 . . . . . 2 . . . . . 1 . . . 1 . . . . . . . Parts Built 7 | . . . . . . . . . . . . . . . . . . . . . . . . . . . . . 1 5 . . 1 . . . Authchips 5 | . . . . . . . . . . . . . . . . . . . . . . . . . . . . . . 5 . . . . . . Time 309 | . . . . . . . . . . . . . . . . . . . . . . . . . . . . . 76 182 . . 51 . . . Total Part Build Rating 48 | . . . . . . . . . . . . . . . . . . . . . . . . . . . . . 5 35 . . 8 . . . Part Studies Acquired 20 | . . 4 . . . . . 2 . . . . . . . . . . 6 . . . . 1 . . . . 1 . . 2 4 . . . Parts Repaired 5 | . . 2 . . . . . . . . . . . . . . . . 2 . . . . . . . . . 1 . . . . . . . Time 315 | . . 77 . . . . . . . . . . . . . . . . 102 . . . . . . . . . 136 . . . . . . . Parts Recycled . | . . . . . . . . . . . . . . . . . . . . . . . . . . . . . . . . . . . . . Recycled Matter . | . . . . . . . . . . . . . . . . . . . . . . . . . . . . . . . . . . . . . Retrieved Matter . | . . . . . . . . . . . . . . . . . . . . . . . . . . . . . . . . . . . . . Retrieved Components 9 | . . . . . . 4 . . . . . . . . 3 . 1 . 1 . . . . . . . . . . . . . . . . . Parts Scanalyzed 1 | . . . . . . . . . . . . . . . . . . . . . . . . . . . . . 1 . . . . . . . Part Schematics Acquired 1 | . . . . . . . . . . . . . . . . . . . . . . . . . . . . . 1 . . . . . . . Parts Damaged 1 | . . . . . . . . . . . . . . . . . . . . . . . . . . . . . 1 . . . . . . . Bothacking | -11 -10 -9 -9 -9 -8 -8 -8 -8 -8 -7 -7 -7 -7 -6 -6 -6 -5 -5 -5 -5 -5 -5 -4 -4 -4 -4 -4 -4 -3 -3 -3 -2 -2 -1 -1 -1 ------------ Run | Yrd Mat Mat Min Exi Min Mat Gar Mat Gar Fac Low Low Dat Pro Fac Gar Fac Was Fac Upp Upp War Pro Fac Ext Cet Arc Hub Res Arm Lab Res Tes Acc Com Ac0 Used RIF Installer . | . . . . . . . . . . . . . . . . . . . . . . . . . . . . . . . . . . . . . Robots Hacked 5 | . . . . . . . . . . . . . . . . 1 . . . . . . . . 2 . . . . . . . . . 1 1 Non-combat 1 | . . . . . . . . . . . . . . . . . . . . . . . . . 1 . . . . . . . . . . . Combat . | . . . . . . . . . . . . . . . . . . . . . . . . . . . . . . . . . . . . . Robot Hacks Applied 1 | . . . . . . . . . . . . . . . . . . . . . . . . . 1 . . . . . . . . . . . parse_system 1 | . . . . . . . . . . . . . . . . . . . . . . . . . 1 . . . . . . . . . . . Manual 4 | . . . . . . . . . . . . . . . . 1 . . . . . . . . 1 . . . . . . . . . 1 1 Relay Couplers Released 68 | . . . . . . . 19 . 24 . . . . . . 18 . . . . . . . 3 . . . 1 1 . . 2 . . . . Machine Destruction 65 | . . . . . . . 19 . 21 . . . . . . 18 . . . . . . . 3 . . . 1 1 . . 2 . . . . Programmers 3 | . . . . . . . . . 3 . . . . . . . . . . . . . . . . . . . . . . . . . . . Fabnet Peak Effective % . | . . . . . . . . . . . . . . . . . . . . . . . . . . . . . . . . . . . . . Robots Rewired 21 | . . . . . . . 4 . 2 . . . . . . 2 . . . . . . . . 6 . . . . 7 . . . . . . Allies Hacked . | . . . . . . . . . . . . . . . . . . . . . . . . . . . . . . . . . . . . . Hacks Repelled . | . . . . . . . . . . . . . . . . . . . . . . . . . . . . . . . . . . . . . Allies | -11 -10 -9 -9 -9 -8 -8 -8 -8 -8 -7 -7 -7 -7 -6 -6 -6 -5 -5 -5 -5 -5 -5 -4 -4 -4 -4 -4 -4 -3 -3 -3 -2 -2 -1 -1 -1 -------- Run | Yrd Mat Mat Min Exi Min Mat Gar Mat Gar Fac Low Low Dat Pro Fac Gar Fac Was Fac Upp Upp War Pro Fac Ext Cet Arc Hub Res Arm Lab Res Tes Acc Com Ac0 Total Allies 51 | . . . . . . 1 4 . 2 . . . . . . 3 1 20 . . . . . . 8 5 . . . 7 . . . . . . Largest Group 19 | . . . . . . 1 2 2 2 2 . . . . . 3 3 19 1 . . . . . 4 7 7 5 . 6 . . . . . . Highest-Rated Group 702 | . . . . . . 10 70 70 56 56 . . . . . 326 326 702 46 . . . . . 276 685 685 480 . 440 . . . . . . Highest-Rated Ally 159 | . . . . . . 10 40 39 31 31 . . . . . 148 148 50 46 . . . . . 159 159 159 96 . 89 . . . . . . Initial Warlord ECA Mod 27 | . . . . . . . . 10 10 22 22 22 22 21 21 20 27 27 27 27 27 27 26 26 26 26 26 26 25 25 25 24 24 23 23 23 Warlord Squad Rendezvous 1 | . . . . . . . . . . . . . . . 1 . . . . . . . . . . . . . . . . . . . . . Chimera 1 | . . . . . . . . . . . . . . . 1 . . . . . . . . . . . . . . . . . . . . . Total Orders 10 | . . . . . . 1 . . . . . . . . . . 5 1 . . . . . . . . 2 . . 1 . . . . . . STAY 5 | . . . . . . 1 . . . . . . . . . . 1 1 . . . . . . . . 1 . . 1 . . . . . . FOLLOW 2 | . . . . . . . . . . . . . . . . . 1 . . . . . . . . . 1 . . . . . . . . . AID 3 | . . . . . . . . . . . . . . . . . 3 . . . . . . . . . . . . . . . . . . . Ally Attacks 354 | . . . . . 5 . 31 51 1 8 . . . . . 24 15 100 5 . . . . . 24 26 22 34 . 8 . . . . . . Total Damage 12458 | . . . . . 219 . 482 642 27 112 . . . . . 909 231 5022 175 . . . . . 652 892 751 1583 . 761 . . . . . . Kills 54 | . . . . . . . 4 12 . . . . . . . 7 5 9 1 . . . . . 1 3 3 6 . 3 . . . . . . Allies Corrupted . | . . . . . . . . . . . . . . . . . . . . . . . . . . . . . . . . . . . . . Allies Melted 1 | . . . . . . . . . . . . . . . . . . . . . . . . . . . . . . . . 1 . . . . Turrets Deployed 1 | . . . . . 1 . . . . . . . . . . . . . . . . . . . . . . . . . . . . . . . Intel | -11 -10 -9 -9 -9 -8 -8 -8 -8 -8 -7 -7 -7 -7 -6 -6 -6 -5 -5 -5 -5 -5 -5 -4 -4 -4 -4 -4 -4 -3 -3 -3 -2 -2 -1 -1 -1 ------- Run | Yrd Mat Mat Min Exi Min Mat Gar Mat Gar Fac Low Low Dat Pro Fac Gar Fac Was Fac Upp Upp War Pro Fac Ext Cet Arc Hub Res Arm Lab Res Tes Acc Com Ac0 Active Infowar (turns) 32351 | 102 1417 907 33 252 620 219 403 414 664 1419 355 1434 245 1955 265 286 140 1025 513 635 719 546 1132 159 742 . 169 241 1146 2062 . 1396 870 1322 8096 448 Optics 14880 | . . . . . . . . . . . . . . . . . . . . . . . . . . . . . 1062 1809 . 1273 870 1322 8096 448 Sensors 3394 | . . . . . . . . . . 159 . . . . . . . . . . . . . . . . . . . 574 . 1217 706 730 8 . Terrain 7092 | 9 645 105 . . 620 219 . 321 193 1298 355 1427 166 1501 233 . . . . . . . . . . . . . . . . . . . . . Seismic 11517 | 102 1417 802 33 252 . . . . . . 351 1432 166 1952 141 . 140 1025 513 635 719 546 1132 159 . . . . . . . . . . . . Jamming 3471 | . . . . . . . 403 93 471 100 . . 79 . . 286 . . . . . . . . 742 . 169 241 715 172 . . . . . . Robot Analysis Total 154 | . 2 . . . . 1 . . . . . . 151 . . . . . . . . . . . . . . . . . . . . . . . Derelict Logs Recovered 6 | . . . . . . . . . . . 1 . . 2 . . . . . . . . 3 . . . . . . . . . . . . . Drone Launches . | . . . . . . . . . . . . . . . . . . . . . . . . . . . . . . . . . . . . . Drone Recoveries . | . . . . . . . . . . . . . . . . . . . . . . . . . . . . . . . . . . . . . Exploration | -11 -10 -9 -9 -9 -8 -8 -8 -8 -8 -7 -7 -7 -7 -6 -6 -6 -5 -5 -5 -5 -5 -5 -4 -4 -4 -4 -4 -4 -3 -3 -3 -2 -2 -1 -1 -1 ------------- Run | Yrd Mat Mat Min Exi Min Mat Gar Mat Gar Fac Low Low Dat Pro Fac Gar Fac Was Fac Upp Upp War Pro Fac Ext Cet Arc Hub Res Arm Lab Res Tes Acc Com Ac0 Turns Passed 51817 | 155 1417 2309 33 2138 1277 1395 1660 1879 1803 1771 413 1464 640 2024 787 1638 635 1025 858 635 772 1332 1537 1189 2634 378 1144 628 1146 2341 376 1642 870 1322 8096 454 Spaces Moved 20697 | 74 588 1027 17 909 858 618 666 809 730 743 189 565 153 429 306 647 235 699 374 307 367 621 504 345 957 156 375 215 461 608 209 756 305 421 3360 94 Core 940 | 7 . . . . 494 . . . . . . . . 1 91 . . 337 . . . . . . . . . . . . . . . . . 10 Treads 19757 | 67 588 1027 17 909 364 618 666 809 730 743 189 565 153 428 215 647 235 362 374 307 367 621 504 345 957 156 375 215 461 608 209 756 305 421 3360 84 Legs . | . . . . . . . . . . . . . . . . . . . . . . . . . . . . . . . . . . . . . Wheels . | . . . . . . . . . . . . . . . . . . . . . . . . . . . . . . . . . . . . . Hover . | . . . . . . . . . . . . . . . . . . . . . . . . . . . . . . . . . . . . . Flight . | . . . . . . . . . . . . . . . . . . . . . . . . . . . . . . . . . . . . . Fastest Speed 50 | 50 160 160 200 160 50 200 200 200 195 195 208 208 272 345 50 160 210 50 160 200 200 160 232 205 200 202 216 216 166 160 158 158 218 185 185 50 Average Speed 202 | 149 160 174 200 199 113 200 200 200 200 200 208 231 311 375 189 210 218 111 175 200 200 188 232 242 222 206 226 216 188 206 172 205 218 214 219 208 Slowest Speed 2450 | 160 160 200 200 200 200 200 200 200 240 235 208 272 385 2450 400 280 226 226 200 200 200 232 232 330 370 220 245 219 229 285 228 218 218 218 227 227 Overloaded Moves . | . . . . . . . . . . . . . . . . . . . . . . . . . . . . . . . . . . . . . Propulsion Burnouts . | . . . . . . . . . . . . . . . . . . . . . . . . . . . . . . . . . . . . . Robots Hopped . | . . . . . . . . . . . . . . . . . . . . . . . . . . . . . . . . . . . . . Potential Cave-ins 49 | . . . . . . . . . . . . . . 4 . 4 . 6 . . . . . . . . . . . 25 . . 5 3 2 . Cave-ins Triggered 7 | . . . . . . . . . . . . . . . . . . . . . . . . . . . . . . 7 . . . . . . Teleports 2 | . . . . . . . . . . . . . . . . . . . . . . . . . . . . . . . . . . . 1 1 Exploration Rate (%) 54 | 6 94 65 5 90 81 50 94 83 97 26 40 69 80 63 6 73 10 98 15 46 61 88 65 14 88 65 88 27 17 46 93 26 48 14 79 11 Regions Visited 36 Branch Regions 20 Pre-discovered Areas 28 | . 1 1 . 1 . . . . . . 1 2 22 . . . . . . . . . . . . . . . . . . . . . . . Known Exits Taken 13 | . 1 1 . . 1 1 . 1 . 1 . . . . 1 . . . 1 . . . 1 . . . . . 1 . . 1 1 1 . . Unknown Exits Taken 18 | 1 . . 1 1 . . . . . . 1 1 1 1 . . . . . 1 1 1 . 1 1 1 1 1 . 1 1 . . . 1 . Scrap Searched 13 | . . . . . 1 . . . . . . 2 . 3 . . . . . . 2 . 5 . . . . . . . . . . . . . Spaces Dug 544 | . 9 22 . . 5 17 19 8 2 32 . 31 . 16 2 25 18 23 16 3 . . 1 13 12 . 1 192 . 17 . 3 11 20 6 20 Terrain Destroyed 1920 | . 10 29 . 30 22 17 106 9 197 39 . 59 . 49 40 67 20 73 17 3 1 62 56 107 85 17 30 216 13 166 . 13 43 104 109 111 Melee 154 | . . . . . 5 6 19 6 2 32 . 16 . . 2 17 17 4 15 3 . . . 5 5 . . . . . . . . . . . Projectile 758 | . 10 9 . . . . . . 3 6 . 1 . 49 6 2 3 . 2 . 1 55 56 49 79 1 30 38 10 107 . 13 42 51 45 90 AOE 966 | . . 20 . 30 17 11 87 3 192 . . 42 . . 30 48 . 69 . . . 7 . 53 . 16 . 177 . 44 . . . 44 58 18 Terrain Rammed . | . . . . . . . . . . . . . . . . . . . . . . . . . . . . . . . . . . . . . Walls Destroyed . | . . . . . . . . . . . . . . . . . . . . . . . . . . . . . . . . . . . . . Machines Disabled . | . . . . . . . . . . . . . . . . . . . . . . . . . . . . . . . . . . . . . Actions | -11 -10 -9 -9 -9 -8 -8 -8 -8 -8 -7 -7 -7 -7 -6 -6 -6 -5 -5 -5 -5 -5 -5 -4 -4 -4 -4 -4 -4 -3 -3 -3 -2 -2 -1 -1 -1 --------- Run | Yrd Mat Mat Min Exi Min Mat Gar Mat Gar Fac Low Low Dat Pro Fac Gar Fac Was Fac Upp Upp War Pro Fac Ext Cet Arc Hub Res Arm Lab Res Tes Acc Com Ac0 Total 27148 | 100 935 1427 17 1101 1083 707 855 964 925 900 198 669 269 766 425 801 311 886 528 317 385 739 798 519 1282 197 620 302 622 1319 225 836 436 671 3822 191 Wait 2535 | 3 246 265 1 24 120 28 24 45 26 16 . 45 26 261 9 14 29 80 85 . 4 18 224 31 119 4 200 14 68 276 . 3 26 33 164 4 Move 20659 | 73 588 1026 16 908 857 617 665 808 729 742 188 564 152 428 306 645 235 698 373 306 366 621 503 344 956 155 374 214 460 603 208 755 304 420 3359 93 Hop . | . . . . . . . . . . . . . . . . . . . . . . . . . . . . . . . . . . . . . Pick Up 435 | 4 10 24 . 34 17 11 8 6 8 15 1 3 24 3 22 11 5 23 13 1 1 21 5 9 18 4 5 7 11 43 4 17 5 17 20 5 Fast Attach 233 | 7 4 2 . 5 9 1 2 2 3 6 1 3 3 3 12 6 . 11 2 . . 10 3 17 30 8 4 3 4 19 4 14 4 7 19 5 Attach 225 | 1 3 10 . 9 2 3 1 . 14 7 . 3 13 2 6 3 4 9 2 . . 10 5 11 7 1 4 4 3 49 1 3 . 10 7 18 Detach 106 | 1 2 2 . 5 1 . . . 10 2 1 4 3 . 6 1 1 9 . . . 5 1 1 5 1 3 2 2 13 5 2 2 3 12 1 Swap 483 | . 5 21 . 11 2 10 31 34 19 28 3 9 5 12 8 13 8 2 10 1 2 4 16 9 13 3 2 17 18 36 . 10 26 42 47 6 Drop 379 | 1 2 18 . 33 3 4 19 19 2 15 . 4 16 4 9 11 . 11 11 1 1 25 5 7 23 8 6 5 8 27 . 24 7 13 32 5 Fire 1680 | 10 75 58 . 72 64 26 45 44 79 37 4 15 21 53 45 40 12 34 15 2 5 23 36 82 71 13 22 35 47 203 3 8 59 120 148 54 Melee 240 | . . . . . 8 7 38 6 12 32 . 19 6 . 2 42 17 9 16 6 6 . . 7 7 . . . . . . . . . . . Ram 2 | . . . . . . . . . . . . . . . . . . . . . . . . . . . . . . 2 . . . . . . Kick . | . . . . . . . . . . . . . . . . . . . . . . . . . . . . . . . . . . . . . Crush 16 | . . 1 . . . . . . . . . . . . . . . . 1 . . 2 . . 3 . . 1 1 . . . 3 4 . . Escape Stasis 52 | . . . . . . . 10 . 10 . . . . . . 12 . . . . . . . . 1 . . . . 5 . . . 2 12 . Rewire 102 | . . . . . . . 12 . 13 . . . . . . 3 . . . . . . . . 29 . . . . 43 . . . . 2 . Trap 1 | . . . . . . . . . . . . . . . . . . . . . . . . 1 . . . . . . . . . . . . Miscellaneous . | . . . . . . . . . . . . . . . . . . . . . . . . . . . . . . . . . . . . . Route ------- -11/Scrapyard -10/Materials (discovered 5 exits: *Mat x3 / [*Min] / [*Sub]) -9/Materials (discovered 5 exits: *Mat x3 / *Min x2) -9/Mines -9/Exiles -8/Mines -8/Materials (discovered 4 exits: *Fac / [*Sto x2] / Gar) -8/Garrison (discovered 3 exits: *Mat x3) -8/Materials (discovered 6 exits: *Fac x3 / [*Sto x2] / Gar) -8/Garrison (discovered 3 exits: *Fac x3) -7/Factory (discovered 3 exits: *Fac / *Low x2) -7/Lower Caves -7/Lower Caves (discovered 2 exits: Fac / *Dat) -7/Data Miner -6/Proximity Caves -6/Factory (discovered 3 exits: Fac / Low / Gar) -6/Garrison (discovered 3 exits: *Fac x3) -5/Factory (discovered 2 exits: Upp x2) -5/Waste -5/Factory (discovered 3 exits: *Fac / *Upp x2) -5/Upper Caves -5/Upper Caves (discovered 2 exits: *Fac / *War) -5/Warlord -4/Proximity Caves -4/Factory -4/Extension (discovered 2 exits: *Res / *Cet) -4/Cetus (discovered 2 exits: *Res / [*Arc]) -4/Archives (discovered 3 exits: *Res / *Hub x2) -4/Hub_04(d) -3/Research -3/Armory -3/Lab -2/Research (discovered 3 exits: *Acc / *Tes x2) -2/Testing -1/Access -1/Command (discovered 3 exits: [*Sur x2] / [*Ac0]) -1/Access_0 Near Former Tau Ceti IV History --------- Turn | Location | Event 6 | -11/Scrapyard | Discovered new exit (range 15) 156 | -11/Scrapyard | Entered Materials 301 | -10/Materials | Build established: Mutant 381 | -10/Materials | Discovered new exit (range 9) 485 | -10/Materials | Discovered new exit (range 6) 596 | -10/Materials | Discovered new exit (range 12) 638 | -10/Materials | Core integrity fell below 50% 664 | -10/Materials | Lost 4 parts (1p1n2w) 862 | -10/Materials | Central database locked down 870 | -10/Materials | Discovered new exit (range 16) 964 | -10/Materials | Build established: Scavenger-Mutant 1127 | -10/Materials | Identified exit to Materials 1573 | -10/Materials | Entered another Materials area 1573 | -9/Materials | Evolved 2 slots: Weapon x2 1574 | -9/Materials | Identified exit to Materials 1828 | -9/Materials | Lost 3 parts (1p2n) 1857 | -9/Materials | Destroyed 7 combat bots 1906 | -9/Materials | Identified exit to Mines 2156 | -9/Materials | Build established: Scavenger-Gunner 2757 | -9/Materials | Repaired Imp. Assault Rifle 2775 | -9/Materials | Learned location of 1 exit from Storage 2851 | -9/Materials | Loaded intel: 13 trap records 2874 | -9/Materials | Repaired Lgt. Treads+ 2916 | -9/Materials | Learned location of Mines (-9) 2969 | -9/Materials | Learned Storage emergency access door positions 3063 | -9/Materials | Learned Materials trap positions 3240 | -9/Materials | Central database locked down 3882 | -9/Materials | Entered Mines 3907 | -9/Mines | Deemed a non-threat by the Exiles lab entrance 3907 | -9/Mines | Discovered new exit (range 5) 3915 | -9/Mines | Entered Exiles 3965 | -9/Exiles | Met 8R-AWN 3999 | -9/Exiles | Met EX-HEX 4077 | -9/Exiles | Met EX-DEC 4085 | -9/Exiles | Learned location of Zion (-6) 4267 | -9/Exiles | Met EX-BIN 4295 | -9/Exiles | Aligned with FarCom system 4297 | -9/Exiles | Given EX-Vault access code 4351 | -9/Exiles | Opened EX-Vault 4403 | -9/Exiles | Warned to stay clear of 0b10 Research branches 4435 | -9/Exiles | Build established: Gunner 4443 | -9/Exiles | Found Modified TNC 4448 | -9/Exiles | Found Lightpack 2.0 5047 | -9/Exiles | Attacked by the Exiles 5195 | -9/Exiles | Core integrity fell below 50% 5228 | -9/Exiles | Destroyed 8R-AWN 5242 | -9/Exiles | Found Prototype Ballistic Gun 5242 | -9/Exiles | Identified 8R-AWN's Boregun 5255 | -9/Exiles | Lost 5 parts (1n1u3w) 5543 | -9/Exiles | Destroyed EX-HEX 5561 | -9/Exiles | Destroyed EX-DEC 5583 | -9/Exiles | Destroyed EX-BIN 5617 | -9/Exiles | Found Prototype Energy Gun 5617 | -9/Exiles | Identified AWS/EX-DEC 5628 | -9/Exiles | Found Prototype Device 5628 | -9/Exiles | Identified System Purifier 5645 | -9/Exiles | Found Deploy-a-Sentry 5912 | -9/Exiles | Build established: Scavenger-Gunner 6022 | -9/Exiles | Discovered new exit (range 14) 6053 | -9/Exiles | Left Exiles lab with Deploy-a-Sentry 6053 | -9/Exiles | Entered Mines 6142 | -8/Mines | 1C-UTU came to Exiles' defense 6147 | -8/Mines | Released all parts (7) 6153 | -8/Mines | Discovered exit to Materials (range 12) 6373 | -8/Mines | DAS Turret deployed 6444 | -8/Mines | Build established: Mutant 7016 | -8/Mines | Build established: Scavenger-Skirmisher 7330 | -8/Mines | Entered Materials 7330 | -8/Materials | Evolved 2 slots: Propulsion x1, Utility x1 7331 | -8/Materials | Loaded intel: 12 trap records 7391 | -8/Materials | Discovered new exit (range 13) 7778 | -8/Materials | Discovered new exit (range 10) 7846 | -8/Materials | Build established: Scavenger-Gunner 8587 | -8/Materials | Discovered new exit (range 16) 8641 | -8/Materials | Identified exit to Garrison 8725 | -8/Materials | Entered Garrison 8974 | -8/Garrison | Garrison Relay disabled 9151 | -8/Garrison | Triggered checkpoint 9163 | -8/Garrison | Triggered checkpoint 9206 | -8/Garrison | Destroyed 7 combat bots 9333 | -8/Garrison | Triggered checkpoint 9463 | -8/Garrison | Phase Generator disabled 9547 | -8/Garrison | Triggered checkpoint 9557 | -8/Garrison | Garrison Relay disabled 9589 | -8/Garrison | Garrison Relay disabled 9681 | -8/Garrison | Discovered new exit (range 10) 9919 | -8/Garrison | Discovered new exit (range 12) 9983 | -8/Garrison | Triggered checkpoint 10023 | -8/Garrison | Garrison Relay disabled 10213 | -8/Garrison | Garrison Relay disabled 10289 | -8/Garrison | Discovered new exit (range 15) 10385 | -8/Garrison | Entered Materials 10385 | -8/Materials | Accompanied by 2 allies 10785 | -8/Materials | First assault squad dispatched 10988 | -8/Materials | Discovered new exit (range 15) 11294 | -8/Materials | Discovered new exit (range 13) 11467 | -8/Materials | Discovered new exit (range 7) 11686 | -8/Materials | Central database locked down 11762 | -8/Materials | Discovered new exit (range 14) 11804 | -8/Materials | Discovered new exit (range 16) 12254 | -8/Materials | Identified exit to Garrison 12264 | -8/Materials | Entered Garrison 12338 | -8/Garrison | Phase Generator disabled 12580 | -8/Garrison | Garrison Relay disabled 12624 | -8/Garrison | Triggered checkpoint 12830 | -8/Garrison | Triggered checkpoint 12860 | -8/Garrison | Triggered checkpoint 12871 | -8/Garrison | Core integrity fell below 50% 13027 | -8/Garrison | Garrison Relay disabled 13045 | -8/Garrison | Triggered checkpoint 13319 | -8/Garrison | Discovered new exit (range 11) 13708 | -8/Garrison | Garrison Relay disabled 13716 | -8/Garrison | Discovered new exit (range 10) 13724 | -8/Garrison | Triggered checkpoint 13930 | -8/Garrison | Triggered checkpoint 13953 | -8/Garrison | Garrison Relay disabled 14047 | -8/Garrison | Discovered new exit (range 10) 14067 | -8/Garrison | Entered Factory 14067 | -7/Factory | Accompanied by 2 allies 14067 | -7/Factory | Evolved 2 slots: Power x1, Utility x1 15247 | -7/Factory | Identified exit to Lower Caves 15267 | -7/Factory | Discovered new exit (range 7) 15409 | -7/Factory | Build established: Skirmisher 15667 | -7/Factory | First assault squad dispatched 15838 | -7/Factory | Entered Lower Caves 15840 | -7/Lower Caves | Encountered a Master Thief 15841 | -7/Lower Caves | AWS/EX-DEC stolen by Master Thief 15849 | -7/Lower Caves | Met a Warlord Commander 15850 | -7/Lower Caves | Learned location of Warlord (-5) 15851 | -7/Lower Caves | Warlord Commander delivered Encrypted Comm Array 15856 | -7/Lower Caves | Found Encrypted Comm Array 15935 | -7/Lower Caves | Learned Factory garrison access intel 15953 | -7/Lower Caves | Attracted the attention of an 0b10 checkpoint 16058 | -7/Lower Caves | Discovered new exit (range 15) 16251 | -7/Lower Caves | Entered another Lower Caves area 16253 | -7/Lower Caves | Discovered new exit (range 16) 16253 | -7/Lower Caves | Encountered a Master Thief 16257 | -7/Lower Caves | 8R-AWN's Boregun stolen by Master Thief 16631 | -7/Lower Caves | Entered an active Warlord outpost 16661 | -7/Lower Caves | Learned location of Armory (-3) 16661 | -7/Lower Caves | Learned Extension trap positions 17080 | -7/Lower Caves | Attracted the attention of an 0b10 checkpoint 17241 | -7/Lower Caves | Discovered new exit (range 10) 17715 | -7/Lower Caves | Entered Data Miner 17715 | -7/Data Miner | Discovered new exit (range 6) 17769 | -7/Data Miner | Met Data Miner 17820 | -7/Data Miner | Learned location of Section 7 (-3) 17820 | -7/Data Miner | Acquired the access code to Warlord's prototype stash 17861 | -7/Data Miner | Received God Mode back door access code from Data Miner 17960 | -7/Data Miner | Destroyed Data Miner 17964 | -7/Data Miner | Found Prototype Hackware 17968 | -7/Data Miner | Found Prototype Hackware 17972 | -7/Data Miner | Found Prototype Hackware 17973 | -7/Data Miner | Interfaced with the Data Conduit 18084 | -7/Data Miner | Lost 7 parts (1p2n1u3w) 18158 | -7/Data Miner | Core integrity fell below 50% 18181 | -7/Data Miner | Build established: Tank 18252 | -7/Data Miner | Found Exp. Thermal Shield 18355 | -7/Data Miner | Entered Proximity Caves 18836 | -6/Proximity Caves | Build established: Skirmisher 18950 | -6/Proximity Caves | Spotted B-75 Beast 18982 | -6/Proximity Caves | Destroyed B-75 Beast 19114 | -6/Proximity Caves | Learned 4 Factory zone layouts 19251 | -6/Proximity Caves | Build established: Scavenger-Tank 19355 | -6/Proximity Caves | Received a Behemoth hack from an annoying Tinkerer 19787 | -6/Proximity Caves | Build established: Scavenger-Skirmisher 20327 | -6/Proximity Caves | Discovered new exit (range 6) 20379 | -6/Proximity Caves | Entered Factory 20379 | -6/Factory | Evolved 2 slots: Propulsion x1, Weapon x1 20380 | -6/Factory | Identified exit to Lower Caves 20381 | -6/Factory | Identified exit to Factory 20382 | -6/Factory | Loaded intel: 272 machine locations 20383 | -6/Factory | Loaded intel: 4 garrison access locations 20487 | -6/Factory | Identified Quantum Router 20560 | -6/Factory | Identified Deep Network Scanner 20563 | -6/Factory | Identified System Mapper 20571 | -6/Factory | Lost 3 parts (1n2w) 20912 | -6/Factory | Joined by Warlord Chimera squad 21166 | -6/Factory | Identified exit to Garrison 21166 | -6/Factory | Entered Garrison 21167 | -6/Garrison | Loaded intel: 37 machine locations 21228 | -6/Garrison | Build established: Hacker-Mutant 21315 | -6/Garrison | Garrison Relay disabled 21543 | -6/Garrison | Triggered checkpoint 21554 | -6/Garrison | Triggered checkpoint 21751 | -6/Garrison | Garrison Relay disabled 21806 | -6/Garrison | Triggered checkpoint 21902 | -6/Garrison | Build established: Hacker-Gunner 21964 | -6/Garrison | Discovered exit to Factory (range 8) 22031 | -6/Garrison | Rewired Striker 22035 | -6/Garrison | Rewired Striker 22110 | -6/Garrison | Triggered checkpoint 22117 | -6/Garrison | Garrison Relay disabled 22425 | -6/Garrison | Discovered exit to Factory (range 14) 22478 | -6/Garrison | Triggered checkpoint 22491 | -6/Garrison | Garrison Relay disabled 22558 | -6/Garrison | Attempted to access garrison exit controls, blocked by remote lockdown 22707 | -6/Garrison | Discovered exit to Factory (range 8) 22728 | -6/Garrison | Spotted B-90 Cyclops 22741 | -6/Garrison | Befriended a Behemoth using the annoying Tinkerer's hack 22773 | -6/Garrison | Build established: Scavenger-Gunner 22804 | -6/Garrison | Entered Factory 22804 | -5/Factory | Accompanied by 3 allies 22804 | -5/Factory | Evolved 2 slots: Utility x1, Weapon x1 22805 | -5/Factory | Loaded intel: 261 machine locations 23010 | -5/Factory | Identified exit to Upper Caves 23078 | -5/Factory | Fabricated M-28 Smith (x1) 23320 | -5/Factory | Build established: Hacker-Executioner 23336 | -5/Factory | Central database locked down 23439 | -5/Factory | Sucked down chute 23439 | -5/Factory | Entered Waste 23440 | -5/Waste | Met a frightened Derelict 23474 | -5/Waste | 1 allies followed down the chute 23497 | -5/Waste | Spotted C-40 Crusher 23500 | -5/Waste | Spotted C-40 Crusher 23531 | -5/Waste | Crushed by Compactor (1 part destroyed, 1 dropped) 23555 | -5/Waste | Crushed by Compactor (1 part destroyed, 1 dropped) 23576 | -5/Waste | Spotted C-40 Crusher 23603 | -5/Waste | Spotted C-40 Crusher 23610 | -5/Waste | Spotted C-40 Crusher 23685 | -5/Waste | Crushed by Compactor (1 part destroyed, 1 dropped) 23690 | -5/Waste | Spotted C-40 Crusher 23723 | -5/Waste | Discovered new exit (range 12) 23809 | -5/Waste | Warlord forces began an assault 23858 | -5/Waste | Build established: Hacker-Mutant 23897 | -5/Waste | Allies destroyed C-40 Crusher 23898 | -5/Waste | Allies destroyed C-40 Crusher 23902 | -5/Waste | Destroyed C-40 Crusher 23915 | -5/Waste | Allies destroyed C-40 Crusher 23940 | -5/Waste | Allies destroyed C-40 Crusher 23967 | -5/Waste | Lost 16 allies 24157 | -5/Waste | Allies destroyed C-40 Crusher 24316 | -5/Waste | Build established: Hacker-Executioner 24321 | -5/Waste | Found Damper Plating 24375 | -5/Waste | Found Broken System Purifier 24464 | -5/Waste | Entered Factory 24464 | -5/Factory | Accompanied by 1 ally 24465 | -5/Factory | Loaded intel: 317 machine locations 24729 | -5/Factory | Discovered new exit (range 14) 24784 | -5/Factory | Repaired Adv. Force Field 24852 | -5/Factory | Repaired Broken System Purifier 25322 | -5/Factory | Entered Upper Caves 25853 | -5/Upper Caves | Discovered new exit (range 11) 25957 | -5/Upper Caves | Entered another Upper Caves area 25957 | -5/Upper Caves | Discovered new exit (range 9) 26677 | -5/Upper Caves | Encountered a Master Thief 26678 | -5/Upper Caves | Encountered a Master Thief 26678 | -5/Upper Caves | Encountered a Master Thief 26690 | -5/Upper Caves | Exp. Thermal Shield stolen by Master Thief 26692 | -5/Upper Caves | Adv. Force Field stolen by Master Thief 26692 | -5/Upper Caves | System Purifier stolen by Master Thief 26717 | -5/Upper Caves | Discovered new exit (range 5) 26729 | -5/Upper Caves | Entered Warlord 26781 | -5/Warlord | Discovered new exit (range 12) 26857 | -5/Warlord | System corruption cleaned by Quarantine Array 27046 | -5/Warlord | Found Prototype Device 27046 | -5/Warlord | Identified Minesniffer Drone Bay 27117 | -5/Warlord | Met Warlord 27142 | -5/Warlord | Warlord's base attacked by MAIN.C 27201 | -5/Warlord | Opened Warlord's prototype stash 27202 | -5/Warlord | Build established: Mutant 27212 | -5/Warlord | Found Vortex Chain Reactor 27224 | -5/Warlord | Found System Mapper 27229 | -5/Warlord | Found Exp. Target Analyzer 27232 | -5/Warlord | Found System Purifier 27311 | -5/Warlord | Found Prototype Energy Gun 27311 | -5/Warlord | Identified Vortex Rail 27315 | -5/Warlord | Found Vortex Rail 27492 | -5/Warlord | Warlord forces counterattacked 27563 | -5/Warlord | Found Signal Generator 27615 | -5/Warlord | Build established: Executioner 27687 | -5/Warlord | Found Prototype Ballistic Cannon 27687 | -5/Warlord | Identified Hvy. Autocannon 27707 | -5/Warlord | Spotted Striker 27715 | -5/Warlord | Destroyed Striker 27785 | -5/Warlord | Spotted Executioner 27817 | -5/Warlord | Warlord base infiltrated, sounded retreat 27825 | -5/Warlord | Spotted Executioner 27827 | -5/Warlord | Lost 3 allies 27829 | -5/Warlord | Destroyed Executioner 27882 | -5/Warlord | Found Exp. Core Analyzer 27885 | -5/Warlord | Found Adv. Kinecellerator 27966 | -5/Warlord | Spotted Striker 27988 | -5/Warlord | Spotted Executioner 27991 | -5/Warlord | Destroyed Striker 28043 | -5/Warlord | Found Exp. Core Analyzer 28044 | -5/Warlord | Spotted Striker 28044 | -5/Warlord | P-80 Master assimilated allied J9-V0E(g) 28050 | -5/Warlord | Spotted Executioner 28061 | -5/Warlord | Entered Proximity Caves 28061 | -4/Proximity Caves | Identified exit to Factory 28091 | -4/Proximity Caves | Lost 10 allies 28093 | -4/Proximity Caves | Attracted the attention of an 0b10 checkpoint 28225 | -4/Proximity Caves | Learned location of 1 exit from Research 28304 | -4/Proximity Caves | Build established: Scavenger-Tank 28347 | -4/Proximity Caves | Learned Research garrison access intel 28678 | -4/Proximity Caves | Build established: Scavenger-Executioner 28820 | -4/Proximity Caves | Spotted B-86 Titan 28829 | -4/Proximity Caves | Destroyed B-86 Titan 29598 | -4/Proximity Caves | Entered Factory 29598 | -4/Factory | Evolved 2 slots: Utility x2 29599 | -4/Factory | Loaded intel: 307 machine locations 29782 | -4/Factory | Build established: Scavenger-Tank 29812 | -4/Factory | Lost 3 parts (1p2u) 30211 | -4/Factory | Lost 4 parts (2n2w) 30379 | -4/Factory | Lost 4 parts (2n1u1w) 30451 | -4/Factory | System corruption reached 10% 30607 | -4/Factory | Lost 7 parts (2p3n2w) 30720 | -4/Factory | Discovered new exit (range 15) 30787 | -4/Factory | Entered Extension 30788 | -4/Extension | Loaded intel: 21 trap records 30789 | -4/Extension | Loaded intel: 24 machine locations 30873 | -4/Extension | Build established: Hacker-Mutant 31012 | -4/Extension | Disrupted transfer network 31377 | -4/Extension | Build established: Hacker-Gunner 31820 | -4/Extension | Build established: Scavenger-Executioner 32392 | -4/Extension | Spotted B-86 Titan 32401 | -4/Extension | Befriended a Behemoth using the annoying Tinkerer's hack 32432 | -4/Extension | Spotted B-86 Titan 32463 | -4/Extension | Lost 3 allies 32473 | -4/Extension | Destroyed B-86 Titan 32500 | -4/Extension | Destroyed 7 combat bots 32508 | -4/Extension | Lost 7 parts (3n3u1w) 33284 | -4/Extension | Rescued A7 33384 | -4/Extension | Discovered new exit (range 10) 33386 | -4/Extension | Discovered new exit (range 6) 33421 | -4/Extension | Entered Cetus 33421 | -4/Cetus | Accompanied by 4 allies (A7) 33422 | -4/Cetus | Loaded intel: 24 machine locations 33426 | -4/Cetus | Acquired a Cetus Manufacturing Module code from A7 33447 | -4/Cetus | Spotted Cetus Guard 33455 | -4/Cetus | Spotted Cetus Guard 33458 | -4/Cetus | Destroyed Cetus Guard 33458 | -4/Cetus | Destroyed Cetus Guard 33459 | -4/Cetus | Destroyed Cetus Guard 33460 | -4/Cetus | Destroyed Cetus Guard 33554 | -4/Cetus | Started Cetus Manufacturing Module 33567 | -4/Cetus | Escorted A7 to Cetus Mainframe 33579 | -4/Cetus | Manufactured an Enhanced Grunt 33588 | -4/Cetus | Discovered new exit (range 15) 33604 | -4/Cetus | Manufactured an Enhanced Grunt 33622 | -4/Cetus | Spotted Cetus Guard 33629 | -4/Cetus | Manufactured an Enhanced Grunt 33629 | -4/Cetus | Spotted Cetus Guard 33629 | -4/Cetus | Spotted Cetus Guard 33631 | -4/Cetus | Spotted Cetus Guard 33633 | -4/Cetus | Allies destroyed Cetus Guard 33636 | -4/Cetus | Destroyed Cetus Guard 33638 | -4/Cetus | Destroyed Cetus Guard 33642 | -4/Cetus | Destroyed Cetus Guard 33652 | -4/Cetus | Discovered new exit (range 16) 33654 | -4/Cetus | Manufactured an Enhanced Grunt 33664 | -4/Cetus | Met Revision 17 33679 | -4/Cetus | Manufactured an Enhanced Grunt 33799 | -4/Cetus | Entered Archives 33799 | -4/Archives | Accompanied by 7 allies (A7) 33800 | -4/Archives | Loaded intel: 8 machine locations 33804 | -4/Archives | Received a hacking code to weaken MAIN.C 33975 | -4/Archives | Discovered new exit (range 16) 34018 | -4/Archives | Discovered new exit (range 15) 34166 | -4/Archives | Discovered new exit (range 14) 34943 | -4/Archives | Entered Hub_04(d) 34943 | -4/Hub_04(d) | Accompanied by 5 allies 34944 | -4/Hub_04(d) | Loaded intel: 113 machine locations 34990 | -4/Hub_04(d) | Discovered new exit (range 9) 35145 | -4/Hub_04(d) | Network Hub disabled 35293 | -4/Hub_04(d) | Network Hub disabled 35345 | -4/Hub_04(d) | Network Hub disabled 35348 | -4/Hub_04(d) | Core integrity fell below 50% 35403 | -4/Hub_04(d) | Lost 3 parts (1p1u1w) 35411 | -4/Hub_04(d) | Destroyed 8 combat bots 35571 | -4/Hub_04(d) | Entered Research 35571 | -3/Research | Evolved 2 slots: Utility x2 35572 | -3/Research | Identified exit to Armory 35573 | -3/Research | Loaded intel: 106 machine locations 35574 | -3/Research | Loaded intel: 4 garrison access locations 35771 | -3/Research | Revision forces began assault on 0b10 35784 | -3/Research | Repaired Broken Helical Railgun 35790 | -3/Research | Met up with Revision 17++ 35835 | -3/Research | Central database locked down 36181 | -3/Research | Intercept squad dispatched 36191 | -3/Research | Fabricated Exp. Targeting Computer (x1) 36204 | -3/Research | Spotted Tracker 36205 | -3/Research | Spotted Tracker 36213 | -3/Research | Destroyed Tracker 36228 | -3/Research | Spotted Combat Programmer 36229 | -3/Research | Spotted Combat Programmer 36231 | -3/Research | Combat Programmer assimilated allied Revision 36232 | -3/Research | Destroyed Combat Programmer 36240 | -3/Research | Destroyed Combat Programmer 36260 | -3/Research | Found Exp. Targeting Computer 36271 | -3/Research | Research terminal network offline 36364 | -3/Research | Spotted Striker 36378 | -3/Research | Destroyed Striker 36407 | -3/Research | Lost 4 allies 36419 | -3/Research | Found Gamma Bomb Array 36717 | -3/Research | Entered Armory 36718 | -3/Armory | Loaded intel: 90 machine locations 36826 | -3/Armory | Destroyed 8 combat bots 36907 | -3/Armory | Found Prototype Processor 36907 | -3/Armory | Identified Exp. Melee Analysis Suite 37217 | -3/Armory | First assault squad dispatched 37418 | -3/Armory | Fabricated Huge Storage Unit (x1) 37470 | -3/Armory | Fabricated Helical Railgun (x1) 37521 | -3/Armory | Fabricated Helical Railgun (x1) 37555 | -3/Armory | Fabricated Adv. Heavy Siege Treads (x1) 37589 | -3/Armory | Fabricated Adv. Heavy Siege Treads (x1) 37745 | -3/Armory | Intercept squad dispatched 37766 | -3/Armory | Spotted Tracker 37766 | -3/Armory | Destroyed Tracker 37796 | -3/Armory | P-80 Master assimilated allied Electro 8d 37797 | -3/Armory | P-80 Master assimilated allied Champion 8a 37798 | -3/Armory | P-80 Master assimilated allied Electro 8a 37803 | -3/Armory | P-80 Master assimilated allied Electro 8b 37804 | -3/Armory | Spotted Combat Programmer 37828 | -3/Armory | Destroyed Combat Programmer 37841 | -3/Armory | Lost 4 parts (2u2w) 38109 | -3/Armory | Destroyed 8 combat bots 38256 | -3/Armory | System corruption reached 10% 38349 | -3/Armory | Destroyed 8 combat bots 38495 | -3/Armory | Crushed by falling debris 38501 | -3/Armory | Crushed by falling debris 38509 | -3/Armory | Crushed by falling debris 38526 | -3/Armory | Crushed by falling debris 38533 | -3/Armory | Crushed by falling debris 38533 | -3/Armory | System corruption reached 30% 38542 | -3/Armory | Crushed by falling debris 38543 | -3/Armory | Crushed by falling debris 38574 | -3/Armory | Lost 7 parts (2p4u1w) 38622 | -3/Armory | Destroyed Armor Guard 38666 | -3/Armory | Destroyed Armor Guard 38750 | -3/Armory | Found Superdense Plating 38754 | -3/Armory | Found Exp. Weapon Cycler 38766 | -3/Armory | Found Exp. Weapon Cycler 38806 | -3/Armory | Core integrity fell below 50% 38825 | -3/Armory | High security lockdown imminent 38842 | -3/Armory | Lost 6 parts (6w) 38888 | -3/Armory | Destroyed 17 combat bots 38895 | -3/Armory | Lost 4 parts (1p2u1w) 38905 | -3/Armory | High security lockdown engaged 39028 | -3/Armory | Intercept squad dispatched 39031 | -3/Armory | Lost 6 parts (3n1u2w) 39031 | -3/Armory | Spotted Tracker 39032 | -3/Armory | Destroyed 8 combat bots 39037 | -3/Armory | Discovered new exit (range 7) 39058 | -3/Armory | Entered Lab 39058 | -3/Lab | Discovered new exit (range 9) 39084 | -3/Lab | Hidden lab's door opened automatically 39084 | -3/Lab | Sensor layout match revealed 39085 | -3/Lab | Gained access to the hidden lab's interior 39155 | -3/Lab | Found Deep Network Scanner 39159 | -3/Lab | Found Prototype Protection 39159 | -3/Lab | Identified Med. Regenerative Plating 39203 | -3/Lab | Found Prototype Special Weapon 39240 | -3/Lab | Found Prototype Energy Cannon 39240 | -3/Lab | Identified Warp Cannon 39245 | -3/Lab | Found Prototype Energy Gun 39245 | -3/Lab | Identified Hyp. EM Gauss Rifle 39307 | -3/Lab | Decrypted terminal 39325 | -3/Lab | Build established: Scavenger-Mutant 39371 | -3/Lab | Found Alien Artifact 39371 | -3/Lab | Identified Integrated Dissipator 39371 | -3/Lab | Installed Integrated Dissipator, increased core heat dissipation (+20) 39382 | -3/Lab | Found Alien Artifact 39396 | -3/Lab | Found Alien Artifact 39423 | -3/Lab | Decrypted terminal 39434 | -3/Lab | Entered Research 39434 | -2/Research | Warlord forces began assault on 0b10 39434 | -2/Research | Evolved 2 slots: Utility x2 39435 | -2/Research | Loaded intel: 96 machine locations 39459 | -2/Research | Distinguished unit "Knights of the Pentagonal Table" dispatched to help 39459 | -2/Research | Distinguished unit "Bridgeowners Association" dispatched to help 39485 | -2/Research | Identified exit to Testing 39512 | -2/Research | Central database locked down 39512 | -2/Research | Identified Core Regenerator 39512 | -2/Research | Identified Transdimensional Reconstructor 39544 | -2/Research | Research machine network offline 39661 | -2/Research | Found Com. Tesla Bomb Launcher 39681 | -2/Research | Met up with Warlord 39765 | -2/Research | Spotted Executioner 39767 | -2/Research | Spotted Executioner 39788 | -2/Research | Found Exp. Targeting Computer 40025 | -2/Research | Build established: Scavenger-Executioner 40067 | -2/Research | Met DD-05H 40158 | -2/Research | Discovered new exit (range 13) 40253 | -2/Research | Found Unknown Protection 40253 | -2/Research | Identified Powered Armor 40377 | -2/Research | Borebot progress halted 40462 | -2/Research | Borebot progress halted 40507 | -2/Research | Borebot progress halted 40568 | -2/Research | Found Exp. Core Analyzer 40588 | -2/Research | Spotted Executioner 40629 | -2/Research | Found Adv. Kinecellerator 40635 | -2/Research | Found Exp. Core Analyzer 40741 | -2/Research | Spotted Tracker 40742 | -2/Research | Spotted Tracker 40743 | -2/Research | Spotted Tracker 40936 | -2/Research | Given Cave Seal Controls access code 41076 | -2/Research | Entered Testing 41077 | -2/Testing | Loaded intel: 71 machine locations 41173 | -2/Testing | Found Prototype Energy Cannon 41173 | -2/Testing | Identified Cld. Nova Cannon 41249 | -2/Testing | Unchained authorized (6S-H0T) 41257 | -2/Testing | Found Prototype Hackware 41257 | -2/Testing | Identified Ghost Barrier 41403 | -2/Testing | Lost 4 allies 41412 | -2/Testing | Spotted Striker 41454 | -2/Testing | Fabricated Helical Railgun? 41480 | -2/Testing | Found Prototype Energy Cannon 41480 | -2/Testing | Identified Null Cannon 41611 | -2/Testing | Spotted Striker 41725 | -2/Testing | Found Prototype Ballistic Cannon 41871 | -2/Testing | Discovered new exit (range 22) 41916 | -2/Testing | Found Prototype Ballistic Gun 41916 | -2/Testing | Identified Hyp. Multirail 41936 | -2/Testing | Intercept squad dispatched 41942 | -2/Testing | Identified exit to Access 41946 | -2/Testing | Spotted Tracker 41946 | -2/Testing | Entered Access 41946 | -1/Access | Evolved 2 slots: Power x1, Weapon x1 41947 | -1/Access | Loaded intel: 128 machine locations 42022 | -1/Access | Garrison activated, responded to threat 42087 | -1/Access | Lost 14 allies 42174 | -1/Access | Destroyed 7 combat bots 42205 | -1/Access | Lost 4 parts (2u2w) 42446 | -1/Access | First assault squad dispatched 42704 | -1/Access | Destroyed 8 combat bots 42836 | -1/Access | Intercept squad dispatched 42856 | -1/Access | Spotted Tracker 42857 | -1/Access | Spotted Tracker 42864 | -1/Access | Destroyed Tracker 42865 | -1/Access | Spotted Combat Programmer 42866 | -1/Access | Destroyed Tracker 42869 | -1/Access | Destroyed Combat Programmer 42889 | -1/Access | Spotted Combat Programmer 42894 | -1/Access | Destroyed Combat Programmer 42907 | -1/Access | Found Prototype Energy Gun 43060 | -1/Access | Spotted B-99 Colossus 43096 | -1/Access | Destroyed B-99 Colossus 43110 | -1/Access | Spotted B-99 Colossus 43130 | -1/Access | Destroyed B-99 Colossus 43149 | -1/Access | Found Prototype Ballistic Gun 43156 | -1/Access | Lost 6 parts (1p2n1u2w) 43188 | -1/Access | Identified Immobilizer 43208 | -1/Access | Found Prototype Ballistic Gun 43240 | -1/Access | Discovered new exit (range 4) 43244 | -1/Access | Identified exit to Command 43268 | -1/Access | Entered Command 43269 | -1/Command | Loaded intel: 63 machine locations 43391 | -1/Command | Disengaged cave seal 43391 | -1/Command | Derelicts emerged from the dark tunnel 43392 | -1/Command | Welcomed Warlord to Command 43440 | -1/Command | Phase Generator disabled 43518 | -1/Command | First assault squad dispatched 43616 | -1/Command | Disengaged cave seal 43834 | -1/Command | Spotted Striker 43835 | -1/Command | Spotted Striker 43836 | -1/Command | Spotted Alpha 7 43836 | -1/Command | Identified Multirail (x2) 43838 | -1/Command | Destroyed Striker 43840 | -1/Command | Destroyed Striker 43844 | -1/Command | Spotted Executioner 43845 | -1/Command | Spotted Alpha 7 43845 | -1/Command | Spotted Executioner 43855 | -1/Command | Destroyed Executioner 43875 | -1/Command | Spotted Executioner 43877 | -1/Command | Destroyed Alpha 7 43877 | -1/Command | Destroyed Executioner 43884 | -1/Command | System corruption reached 10% 43886 | -1/Command | Destroyed Executioner 43892 | -1/Command | Destroyed Alpha 7 43906 | -1/Command | Found Exp. Target Analyzer 43908 | -1/Command | Lost 20 allies 43917 | -1/Command | Found Adv. Kinecellerator 43924 | -1/Command | Spotted Executioner 43932 | -1/Command | Spotted B-99 Colossus 43933 | -1/Command | Destroyed Executioner 43934 | -1/Command | Spotted B-99 Colossus 44058 | -1/Command | Warlord commented on Warlord statues 44058 | -1/Command | Spotted M Guard 44061 | -1/Command | Spotted M Guard 44061 | -1/Command | Spotted Combat Programmer 44063 | -1/Command | Spotted Combat Programmer 44095 | -1/Command | Destroyed M Guard 44095 | -1/Command | Combat Programmer assimilated allied DN-S2P(m) 44108 | -1/Command | All MAIN.C guards destroyed 44131 | -1/Command | Lost 4 allies 44140 | -1/Command | Found Prototype Reactor 44140 | -1/Command | Identified Zero-point Reactor 44376 | -1/Command | Identified Gui. Remote Datajack 44394 | -1/Command | Hacked MAIN.C using A7's code 44398 | -1/Command | Met MAIN.C 44439 | -1/Command | 0b10 Conduit disabled 44452 | -1/Command | Warlord destroyed during the assault 44488 | -1/Command | Destroyed MAIN.C Shell 44491 | -1/Command | MAIN.C activated Command garrisons 44530 | -1/Command | Identified Omega Cannon 44530 | -1/Command | Discovered new exit (range 39) 44530 | -1/Command | Discovered new exit (range 82) 44530 | -1/Command | Extracted map data and part IDs from MAIN.C's data core 44538 | -1/Command | Lost 3 parts (3w) 44580 | -1/Command | Spotted B-99 Colossus 44586 | -1/Command | Destroyed B-99 Colossus 44626 | -1/Command | Found Multirail 44768 | -1/Command | Found Exp. Force Field 44774 | -1/Command | Found Exp. System Purifier 44894 | -1/Command | Found Zero-point Reactor 44898 | -1/Command | Found Zero-point Reactor 45255 | -1/Command | Found Multirail 46513 | -1/Command | Found Adv. Kinecellerator 49564 | -1/Command | Found Cld. Nova Cannon 50891 | -1/Command | Found Centrium Heavy Armor Plating 51352 | -1/Command | Warped through subspace to slip node 51352 | -1/Command | Discovered new exit (range 5) 51364 | -1/Command | Entered Access_0 51365 | -1/Access_0 | Loaded intel: 58 machine locations 51368 | -1/Access_0 | Met Architect 51369 | -1/Access_0 | Architect warped through subspace 51373 | -1/Access_0 | Hacked A8 with code downloaded from Data Conduit 51376 | -1/Access_0 | Destroyed A8 51401 | -1/Access_0 | Spotted Enhanced Programmer 51404 | -1/Access_0 | Architect warped through subspace 51417 | -1/Access_0 | Destroyed Enhanced Programmer 51438 | -1/Access_0 | Architect warped through subspace 51462 | -1/Access_0 | Architect warped through subspace 51487 | -1/Access_0 | Architect warped through subspace 51507 | -1/Access_0 | Subspace Access Node disabled 51512 | -1/Access_0 | Architect warped through subspace 51528 | -1/Access_0 | Subspace Access Node disabled 51537 | -1/Access_0 | Architect warped through subspace 51553 | -1/Access_0 | Architect warped through subspace 51570 | -1/Access_0 | Architect warped through subspace 51594 | -1/Access_0 | Architect warped through subspace 51611 | -1/Access_0 | Subspace Access Node disabled 51638 | -1/Access_0 | Architect warped through subspace 51642 | -1/Access_0 | Spotted Enhanced Programmer 51660 | -1/Access_0 | Lost 3 parts (2u1w) 51665 | -1/Access_0 | Architect warped through subspace 51686 | -1/Access_0 | Architect warped through subspace 51712 | -1/Access_0 | Core integrity fell below 50% 51723 | -1/Access_0 | Subspace Access Node disabled 51724 | -1/Access_0 | Spotted Enhanced Programmer 51736 | -1/Access_0 | Destroyed Enhanced Programmer 51756 | -1/Access_0 | Spotted Enhanced Programmer 51760 | -1/Access_0 | Spotted Enhanced Programmer 51787 | -1/Access_0 | Core integrity fell below 20% 51793 | -1/Access_0 | Used Core Regenerator, restored core integrity (+400) 51808 | -1/Access_0 | Destroyed Architect 51809 | -1/Access_0 | Architect triggered a singularity event 51812 | -1/Access_0 | Released all parts (15) 51812 | -1/Access_0 | Extracted unknown sensor trigger ID from Architect's data core 51813 | -1/Access_0 | Found Hpw. Transdimensional Reconstructor 51813 | -1/Access_0 | Warped through subspace to slip node 51813 | -1/Access_0 | Discovered new exit (range 8) 51818 | *** | Escaped singularity! Last Messages --------------- 51812_ Released Adv. Coolant Injector. 51812_ Released Adv. Kinecellerator. 51812_ Released Imp. Utility Shielding. 51812_ Acquired data core, extracted unknown sensor trigger ID. 51812_ Penetrated by HV Slug. 51812_ Knocked back. 51813_ A0_COM: 7. 51813_ Acquired 4 matter. 51813_ Acquired Hpw. Transdimensional Reconstructor. 51813_ Warped through subspace, drawn to slip node. 51813_ EXIT=FOUND 51814_ A0_COM: 6. 51815_ A0_COM: 5. 51816_ A0_COM: 4. 51817_ A0_COM: 3. 51818_ A0_COM: 2. [Achievement: Slow And Deadly Wins The Race] Map ----- +----------------------------------------------------+ | | | | | | | | | | | | | | | | | | | | | | | | | | | | | | | | | ?????????????????????????????????????????????????? | | ?????????????????????????????????????????????????? | | ?????????????????????????????????????????????????? | | ?????????????????????????????????????????????????? | | ?????????????????????????????????????????????????? | | ?????????????????????????????????????????????????? | | ????????????????????????###??????????????????????? | | ???????????????????????## ##?????????????????????? | | ???????????????????????# #?????????????????????? | | ???????????????????????# @ #?????????????????????? | | ??????????????????????## #?????????????????????? | | ??????????????????????# #?????????????????????? | | ??????????????????????# ##?????????????????????? | | ??????????????????????## #?????????????????????? | | ??????????????????????# #?????????????????????? | | ??????????????????????# ##?????????????????????? | | ??????????????????????# < #?????????????????????? | | ??????????????????????# ##?????????????????????? | | ??????????????????????## #??????????????????????? | | ???????????????????????####??????????????????????? | | ?????????????????????????????????????????????????? | | ?????????????????????????????????????????????????? | | ?????????????????????????????????????????????????? | | ?????????????????????????????????????????????????? | | ?????????????????????????????????????????????????? | | ?????????????????????????????????????????????????? | | ?????????????????????????????????????????????????? | | ?????????????????????????????????????????????????? | | ?????????????????????????????????????????????????? | | ?????????????????????????????????????????????????? | | ?????????????????????????????????????????????????? | | ?????????????????????????????????????????????????? | | ?????????????????????????????????????????????????? | | ?????????????????????????????????????????????????? | +----------------------------------------------------+ Best States ------------- Heat Dissipation 172 Coolant Potential 100 Energy Generation 83 Energy Capacity 850 Matter Stores 300 Matter Capacity 300 Sight Range 23 Robot Scan Range 18 Terrain Scan Range 16 Terrain Scan Density 110 Jamming Range 16 Armor Coverage 1200 Resistance: KI 30 Utility Shielding 66 Weapon Shielding 66 Weapon Cycling 30 Evasion (%) 50 Targeting Accuracy 24 Target Analysis 10 Core Analysis 8 Armor Integrity Analysis 40 Recoil Reduction 4 Matter Filtering 30 Particle Charging 25 Kinecelleration 50 Salvage Targeting 4 Offensive Hacking 45 Defensive Hacking 25 Authchip Count 5 Trap Extractor Capacity 8 Item Schematics ----------------- Huge Storage Unit | -9/Materials | Hacked Plasma Cutter | -9/Materials | Hacked Combat Drone Bay | -7/Data Miner | Free Lgt. Regenerative Plating | -7/Data Miner | Free Cld. Aerolev Unit | -7/Data Miner | Free Exp. Targeting Computer | -7/Data Miner | Free Imp. Lightning Gun | -7/Data Miner | Free Gyrokinetic Inverter | -7/Data Miner | Free Imp. Weapon Cycler | -7/Data Miner | Free Lrn. Proton Cannon | -7/Data Miner | Free Shield Leg | -7/Data Miner | Free Adv. Target Analyzer | -7/Data Miner | Free Adv. Force Field | -5/Factory | Hacked Tri-rail Accelerator | -5/Factory | Hacked Adv. Heavy Siege Treads | -4/Extension | Hacked Helical Railgun | -3/Research | Scanalyzed Robot Schematics ------------------ W-25 Informer | -7/Data Miner | Free C-17 Slicer | -7/Data Miner | Free E-15 Imp | -7/Data Miner | Free L-41 Fighter | -7/Data Miner | Free R-10 Processor | -7/Data Miner | Free M-28 Smith | -5/Factory | Hacked Fabricated ------------ M-28 Smith | x1 | -5/Factory | Authchip Exp. Targeting Computer | x1 | -3/Research Huge Storage Unit | x1 | -3/Armory | Authchip Helical Railgun | x1 | -3/Armory | Authchip Helical Railgun | x1 | -3/Armory | Authchip Adv. Heavy Siege Treads | x1 | -3/Armory | Authchip Adv. Heavy Siege Treads | x1 | -3/Armory | Authchip Helical Railgun | x1 | -2/Testing Repaired ---------- Imp. Assault Rifle | 60% | -9/Materials Lgt. Treads | 69% | -9/Materials Adv. Force Field | 18% | -5/Factory System Purifier | 64% | -5/Factory | Broken Helical Railgun | 13% | -3/Research | Broken Studied --------- Hvy. Assault Rifle | -9/Materials | Hacked Lgt. Treads | -9/Materials | Hacked Lgt. Assault Rifle | -9/Materials | Hacked Autogun | -9/Materials | Hacked Adv. Treads | -8/Materials | Hacked Grenade Launcher | -8/Materials | Hacked Hvy. Treads | -5/Factory | Hacked Imp. Treads | -5/Factory | Hacked Coil Gun | -5/Factory | Hacked Flak Gun | -5/Factory | Hacked Antimatter Reactor | -5/Factory | Hacked Rnf. Antimatter Reactor | -5/Factory | Hacked Arm. Medium Treads | -4/Factory | Hacked Railgun | -3/Research | Hacked Biometal Medium Treads | -2/Research | Hacked Enh. Nova Cannon | -2/Research | Hacked Biometal Heavy Treads | -2/Testing | Hacked KE Penetrator | -2/Testing | Hacked Adv. Medium Treads | -2/Testing | Hacked Rnf. Quantum Reactor | -2/Testing | Hacked Alien Tech Used ----------------- Integrated Dissipator Transdimensional Reconstructor Core Regenerator High-powered Transdimensional Reconstructor Achievements -------------- Betrayal Most Foul Consequences Doshington Poison In The Code Slow And Deadly Wins The Race Challenges ------------ None Game ------ Seed MakeshiftDirectedSlayer Manual? 0 Play Time 07:32:51 Cumulative 453.0 hours Start 2025.11.15 @ 18:44:06 End 2025.11.18 @ 04:10:15 Sessions 10 Manual Loads 0 Difficulty Rogue Special Mode None Game No. 188 Rogue 180 Adventurer 8 Explorer 0 Win Type 6 Total 31 Types 14/3/4/3/0/1/2/1/2/1 Lore% 91 Gallery% 91 Achievement% 82 Wizard Run 0 Options --------- Layout 2 ASCII 0 Keyboard 1 Movement Numpad Keybinds 1 Fullscreen 2 Font 24/Smallcaps Map View 50x44 Zoom Use 0% Tactical HUD 1 Map Filters NONE Filters NONE Steam 1 RUN: 70191103-868e-4a82-bd34-cc1eec596681